Workbook

Sheet Лист1 (hidden)
J2: =_xlfn.F.INV(0.99,J4-J3,J4-J3) -> 6.028870107
B3: 0 | C3: =Лист2!P3 -> 1 | D3: a | E3: =IF(C3=1,SUM($C$3:C3),"0") -> 1 | F3: =IF(E3<>"0",IF(E3=MIN($E$3:$E$8),D3," + "&D3),"") -> a | G3: =CONCATENATE("y = ",F3,F4,F5,F6,F7,F8) -> y = a + bx + cx2 | I3: N1 = | J3: =SUM(C3:C8) -> 3 | L3: 0 | M3: =LOOKUP(L3+1,$E$3:$E$8,$D$3:$D$8) -> a | N3: =вектор -> 0.009324009324 | O3: =$D$10*$E$10*SQRT(Q3) -> 28.48221289 | P3: =IF(ABS(N3)<O3,"незначим","значим") -> незначим | Q3: =икст_1 -> 0.2074592075 | R3: 0 | S3: -0.01165501166
B4: 1 | C4: =Лист2!P4 -> 1 | D4: bx | E4: =IF(C4=1,SUM($C$3:C4),"0") -> 2 | F4: =IF(E4<>"0",IF(E4=MIN($E$3:$E$8),D4," + "&D4),"") -> + bx | I4: N2 = | J4: =COUNT(Лист2!B2:B101) -> 11 | L4: 1 | M4: =LOOKUP(L4+1,$E$3:$E$8,$D$3:$D$8) -> bx | N4: 17.86363636 | O4: =$D$10*$E$10*SQRT(R4) -> 5.962261617 | P4: =IF(ABS(N4)<O4,"незначим","значим") -> значим | Q4: 0 | R4: 0.009090909091 | S4: 0
B5: 2 | C5: =Лист2!P5 -> 1 | D5: cx2 | E5: =IF(C5=1,SUM($C$3:C5),"0") -> 3 | F5: =IF(E5<>"0",IF(E5=MIN($E$3:$E$8),D5," + "&D5),"") -> + cx2 | L5: 2 | M5: cx2 | N5: 0.008158508159 | O5: =$D$10*$E$10*SQRT(S5) -> 2.134832114 | P5: незначим | Q5: -0.01165501166 | R5: 0 | S5: 0.001165501166
B6: 3 | C6: =Лист2!P6 -> 0 | D6: dx3 | E6: =IF(C6=1,SUM($C$3:C6),"0") -> 0 | L6: 3 | M6: cx2 | O6: =$D$10*$E$10*SQRT(T6) -> 
B7: 0.5 | C7: =Лист2!P7 -> 0 | D7: eх(1/2) | E7: =IF(C7=1,SUM($C$3:C7),"0") -> 0 | L7: 4 | M7: cx2 | O7: =$D$10*$E$10*SQRT(U7) -> 
B8: -1 | C8: =Лист2!P8 -> 0 | D8: fx(-1) | E8: =IF(C8=1,SUM($C$3:C8),"0") -> 0 | L8: 5 | M8: cx2 | O8: =$D$10*$E$10*SQRT(V8) -> 
B10: =DEVSQ(Лист2!C2:C101) -> 40984.90909 | C10: =D10*D10 -> 735.3508159 | D10: =SQRT((SUMSQ(Лист2!C2:C101)-SUMSQ(D12:D111))/(J4-J3)) -> 27.11735267 | E10: =_xlfn.T.INV.2T(0.05,J4-J3) -> 2.306004135 | L10: =LOOKUP(1,E3:E8,B3:B8) -> 0 | M10: =LOOKUP(2,E3:E8,B3:B8) -> 1 | N10: =LOOKUP(3,E3:E8,B3:B8) -> 2 | O10: =LOOKUP(4,E3:E8,B3:B8) -> 2 | P10: =LOOKUP(5,E3:E8,B3:B8) -> 2 | Q10: =LOOKUP(6,E3:E8,B3:B8) -> 2
B11: =B10/(J4-J3) -> 5123.113636 | D11: Yрасч | G11: Y- | H11: Y+ | I11: Y-1 | J11: Y+1 | L11: =L10 -> 0 | M11: =M10 -> 1 | N11: 2 | O11: 2 | P11: 2 | Q11: 2
B12: =1-C10/B11 -> 0.8564640826 | D12: =IF(ISNUMBER(Лист2!C2),MMULT(OFFSET(L12,0,0,1,$J$3),OFFSET($N$3,0,0,$J$3,1)),"") -> -89.1048951 | E12: =MMULT(MMULT(OFFSET(L12,0,0,1,$J$3),икст_1),TRANSPOSE(OFFSET(L12,0,0,1,$J$3))) -> 0.5804195804 | G12: =IF(ISNUMBER(Лист2!C2),D12-$D$10*$E$10*SQRT(E12),"") -> -136.7456241 | H12: =IF(ISNUMBER(Лист2!C2),D12+$D$10*$E$10*SQRT(E12),"") -> -41.4641661 | I12: =IF(ISNUMBER(Лист2!C2),D12-$D$10*$E$10*SQRT(1+E12),"") -> -167.7177506 | J12: =IF(ISNUMBER(Лист2!C2),D12+$D$10*$E$10*SQRT(1+E12),"") -> -10.49203957 | K12: =Лист2!C2 -> -124 | L12: =IF($E$3="0",Лист2!B2^$L$11,1) -> 1 | M12: =Лист2!$B2^M$11 -> -5 | N12: =Лист2!$B2^N$11 -> 25 | O12: =Лист2!$B2^O$11 -> 25 | P12: =Лист2!$B2^P$11 -> 25 | Q12: =Лист2!$B2^Q$11 -> 25
B13: =SQRT(B12) -> 0.925453447 | D13: =IF(ISNUMBER(Лист2!C3),MMULT(OFFSET(L13,0,0,1,$J$3),OFFSET($N$3,0,0,$J$3,1)),"") -> -71.31468531 | E13: =MMULT(MMULT(OFFSET(L13,0,0,1,$J$3),икст_1),TRANSPOSE(OFFSET(L13,0,0,1,$J$3))) -> 0.2783216783 | G13: =IF(ISNUMBER(Лист2!C3),D13-$D$10*$E$10*SQRT(E13),"") -> -104.3045769 | H13: =IF(ISNUMBER(Лист2!C3),D13+$D$10*$E$10*SQRT(E13),"") -> -38.32479373 | I13: =IF(ISNUMBER(Лист2!C3),D13-$D$10*$E$10*SQRT(1+E13),"") -> -142.0159932 | J13: =IF(ISNUMBER(Лист2!C3),D13+$D$10*$E$10*SQRT(1+E13),"") -> -0.6133773901 | K13: =Лист2!C3 -> -65 | L13: =IF($E$3="0",Лист2!B3^$L$11,1) -> 1 | M13: =Лист2!$B3^M$11 -> -4 | N13: =Лист2!$B3^N$11 -> 16 | O13: =Лист2!$B3^O$11 -> 16 | P13: =Лист2!$B3^P$11 -> 16 | Q13: =Лист2!$B3^Q$11 -> 16
D14: =IF(ISNUMBER(Лист2!C4),MMULT(OFFSET(L14,0,0,1,$J$3),OFFSET($N$3,0,0,$J$3,1)),"") -> -53.50815851 | E14: =MMULT(MMULT(OFFSET(L14,0,0,1,$J$3),икст_1),TRANSPOSE(OFFSET(L14,0,0,1,$J$3))) -> 0.1738927739 | G14: =IF(ISNUMBER(Лист2!C4),D14-$D$10*$E$10*SQRT(E14),"") -> -79.58458879 | H14: =IF(ISNUMBER(Лист2!C4),D14+$D$10*$E$10*SQRT(E14),"") -> -27.43172822 | I14: =IF(ISNUMBER(Лист2!C4),D14-$D$10*$E$10*SQRT(1+E14),"") -> -121.2600752 | J14: =IF(ISNUMBER(Лист2!C4),D14+$D$10*$E$10*SQRT(1+E14),"") -> 14.24375816 | K14: =Лист2!C4 -> -27 | L14: =IF($E$3="0",Лист2!B4^$L$11,1) -> 1 | M14: =Лист2!$B4^M$11 -> -3 | N14: =Лист2!$B4^N$11 -> 9 | O14: =Лист2!$B4^O$11 -> 9 | P14: =Лист2!$B4^P$11 -> 9 | Q14: =Лист2!$B4^Q$11 -> 9
D15: =IF(ISNUMBER(Лист2!C5),MMULT(OFFSET(L15,0,0,1,$J$3),OFFSET($N$3,0,0,$J$3,1)),"") -> -35.68531469 | E15: =MMULT(MMULT(OFFSET(L15,0,0,1,$J$3),икст_1),TRANSPOSE(OFFSET(L15,0,0,1,$J$3))) -> 0.1692307692 | G15: =IF(ISNUMBER(Лист2!C5),D15-$D$10*$E$10*SQRT(E15),"") -> -61.4098202 | H15: =IF(ISNUMBER(Лист2!C5),D15+$D$10*$E$10*SQRT(E15),"") -> -9.960809174 | I15: =IF(ISNUMBER(Лист2!C5),D15-$D$10*$E$10*SQRT(1+E15),"") -> -103.3025623 | J15: =IF(ISNUMBER(Лист2!C5),D15+$D$10*$E$10*SQRT(1+E15),"") -> 31.93193296 | K15: =Лист2!C5 -> -9 | L15: =IF($E$3="0",Лист2!B5^$L$11,1) -> 1 | M15: =Лист2!$B5^M$11 -> -2 | N15: =Лист2!$B5^N$11 -> 4 | O15: =Лист2!$B5^O$11 -> 4 | P15: =Лист2!$B5^P$11 -> 4 | Q15: =Лист2!$B5^Q$11 -> 4
D16: =IF(ISNUMBER(Лист2!C6),MMULT(OFFSET(L16,0,0,1,$J$3),OFFSET($N$3,0,0,$J$3,1)),"") -> -17.84615385 | E16: =MMULT(MMULT(OFFSET(L16,0,0,1,$J$3),икст_1),TRANSPOSE(OFFSET(L16,0,0,1,$J$3))) -> 0.1944055944 | G16: =IF(ISNUMBER(Лист2!C6),D16-$D$10*$E$10*SQRT(E16),"") -> -45.41773994 | H16: =IF(ISNUMBER(Лист2!C6),D16+$D$10*$E$10*SQRT(E16),"") -> 9.725432251 | I16: =IF(ISNUMBER(Лист2!C6),D16-$D$10*$E$10*SQRT(1+E16),"") -> -86.18746167 | J16: =IF(ISNUMBER(Лист2!C6),D16+$D$10*$E$10*SQRT(1+E16),"") -> 50.49515398 | K16: =Лист2!C6 -> -2 | L16: =IF($E$3="0",Лист2!B6^$L$11,1) -> 1 | M16: =Лист2!$B6^M$11 -> -1 | N16: =Лист2!$B6^N$11 -> 1 | O16: =Лист2!$B6^O$11 -> 1 | P16: =Лист2!$B6^P$11 -> 1 | Q16: =Лист2!$B6^Q$11 -> 1
D17: =IF(ISNUMBER(Лист2!C7),MMULT(OFFSET(L17,0,0,1,$J$3),OFFSET($N$3,0,0,$J$3,1)),"") -> 0.009324009324 | E17: =MMULT(MMULT(OFFSET(L17,0,0,1,$J$3),икст_1),TRANSPOSE(OFFSET(L17,0,0,1,$J$3))) -> 0.2074592075 | G17: =IF(ISNUMBER(Лист2!C7),D17-$D$10*$E$10*SQRT(E17),"") -> -28.47288888 | H17: =IF(ISNUMBER(Лист2!C7),D17+$D$10*$E$10*SQRT(E17),"") -> 28.4915369 | I17: =IF(ISNUMBER(Лист2!C7),D17-$D$10*$E$10*SQRT(1+E17),"") -> -68.70441877 | J17: =IF(ISNUMBER(Лист2!C7),D17+$D$10*$E$10*SQRT(1+E17),"") -> 68.72306679 | K17: =Лист2!C7 -> 1 | L17: =IF($E$3="0",Лист2!B7^$L$11,1) -> 1 | M17: =Лист2!$B7^M$11 -> 0 | N17: =Лист2!$B7^N$11 -> 0 | O17: =Лист2!$B7^O$11 -> 0 | P17: =Лист2!$B7^P$11 -> 0 | Q17: =Лист2!$B7^Q$11 -> 0
D18: =IF(ISNUMBER(Лист2!C8),MMULT(OFFSET(L18,0,0,1,$J$3),OFFSET($N$3,0,0,$J$3,1)),"") -> 17.88111888 | E18: =MMULT(MMULT(OFFSET(L18,0,0,1,$J$3),икст_1),TRANSPOSE(OFFSET(L18,0,0,1,$J$3))) -> 0.1944055944 | G18: =IF(ISNUMBER(Лист2!C8),D18-$D$10*$E$10*SQRT(E18),"") -> -9.690467216 | H18: =IF(ISNUMBER(Лист2!C8),D18+$D$10*$E$10*SQRT(E18),"") -> 45.45270498 | I18: =IF(ISNUMBER(Лист2!C8),D18-$D$10*$E$10*SQRT(1+E18),"") -> -50.46018894 | J18: =IF(ISNUMBER(Лист2!C8),D18+$D$10*$E$10*SQRT(1+E18),"") -> 86.22242671 | K18: =Лист2!C8 -> 2 | L18: =IF($E$3="0",Лист2!B8^$L$11,1) -> 1 | M18: =Лист2!$B8^M$11 -> 1 | N18: =Лист2!$B8^N$11 -> 1 | O18: =Лист2!$B8^O$11 -> 1 | P18: =Лист2!$B8^P$11 -> 1 | Q18: =Лист2!$B8^Q$11 -> 1
D19: =IF(ISNUMBER(Лист2!C9),MMULT(OFFSET(L19,0,0,1,$J$3),OFFSET($N$3,0,0,$J$3,1)),"") -> 35.76923077 | E19: =MMULT(MMULT(OFFSET(L19,0,0,1,$J$3),икст_1),TRANSPOSE(OFFSET(L19,0,0,1,$J$3))) -> 0.1692307692 | G19: =IF(ISNUMBER(Лист2!C9),D19-$D$10*$E$10*SQRT(E19),"") -> 10.04472526 | H19: =IF(ISNUMBER(Лист2!C9),D19+$D$10*$E$10*SQRT(E19),"") -> 61.49373628 | I19: =IF(ISNUMBER(Лист2!C9),D19-$D$10*$E$10*SQRT(1+E19),"") -> -31.84801688 | J19: =IF(ISNUMBER(Лист2!C9),D19+$D$10*$E$10*SQRT(1+E19),"") -> 103.3864784 | K19: =Лист2!C9 -> 7 | L19: =IF($E$3="0",Лист2!B9^$L$11,1) -> 1 | M19: =Лист2!$B9^M$11 -> 2 | N19: =Лист2!$B9^N$11 -> 4 | O19: =Лист2!$B9^O$11 -> 4 | P19: =Лист2!$B9^P$11 -> 4 | Q19: =Лист2!$B9^Q$11 -> 4
D20: =IF(ISNUMBER(Лист2!C10),MMULT(OFFSET(L20,0,0,1,$J$3),OFFSET($N$3,0,0,$J$3,1)),"") -> 53.67365967 | E20: =MMULT(MMULT(OFFSET(L20,0,0,1,$J$3),икст_1),TRANSPOSE(OFFSET(L20,0,0,1,$J$3))) -> 0.1738927739 | G20: =IF(ISNUMBER(Лист2!C10),D20-$D$10*$E$10*SQRT(E20),"") -> 27.59722939 | H20: =IF(ISNUMBER(Лист2!C10),D20+$D$10*$E$10*SQRT(E20),"") -> 79.75008996 | I20: =IF(ISNUMBER(Лист2!C10),D20-$D$10*$E$10*SQRT(1+E20),"") -> -14.07825699 | J20: =IF(ISNUMBER(Лист2!C10),D20+$D$10*$E$10*SQRT(1+E20),"") -> 121.4255763 | K20: =Лист2!C10 -> 28 | L20: =IF($E$3="0",Лист2!B10^$L$11,1) -> 1 | M20: =Лист2!$B10^M$11 -> 3 | N20: =Лист2!$B10^N$11 -> 9 | O20: =Лист2!$B10^O$11 -> 9 | P20: =Лист2!$B10^P$11 -> 9 | Q20: =Лист2!$B10^Q$11 -> 9
D21: =IF(ISNUMBER(Лист2!C11),MMULT(OFFSET(L21,0,0,1,$J$3),OFFSET($N$3,0,0,$J$3,1)),"") -> 71.59440559 | E21: =MMULT(MMULT(OFFSET(L21,0,0,1,$J$3),икст_1),TRANSPOSE(OFFSET(L21,0,0,1,$J$3))) -> 0.2783216783 | G21: =IF(ISNUMBER(Лист2!C11),D21-$D$10*$E$10*SQRT(E21),"") -> 38.60451401 | H21: =IF(ISNUMBER(Лист2!C11),D21+$D$10*$E$10*SQRT(E21),"") -> 104.5842972 | I21: =IF(ISNUMBER(Лист2!C11),D21-$D$10*$E$10*SQRT(1+E21),"") -> 0.8930976699 | J21: =IF(ISNUMBER(Лист2!C11),D21+$D$10*$E$10*SQRT(1+E21),"") -> 142.2957135 | K21: =Лист2!C11 -> 66 | L21: =IF($E$3="0",Лист2!B11^$L$11,1) -> 1 | M21: =Лист2!$B11^M$11 -> 4 | N21: =Лист2!$B11^N$11 -> 16 | O21: =Лист2!$B11^O$11 -> 16 | P21: =Лист2!$B11^P$11 -> 16 | Q21: =Лист2!$B11^Q$11 -> 16
D22: =IF(ISNUMBER(Лист2!C12),MMULT(OFFSET(L22,0,0,1,$J$3),OFFSET($N$3,0,0,$J$3,1)),"") -> 89.53146853 | E22: =MMULT(MMULT(OFFSET(L22,0,0,1,$J$3),икст_1),TRANSPOSE(OFFSET(L22,0,0,1,$J$3))) -> 0.5804195804 | G22: =IF(ISNUMBER(Лист2!C12),D22-$D$10*$E$10*SQRT(E22),"") -> 41.89073953 | H22: =IF(ISNUMBER(Лист2!C12),D22+$D$10*$E$10*SQRT(E22),"") -> 137.1721975 | I22: =IF(ISNUMBER(Лист2!C12),D22-$D$10*$E$10*SQRT(1+E22),"") -> 10.918613 | J22: =IF(ISNUMBER(Лист2!C12),D22+$D$10*$E$10*SQRT(1+E22),"") -> 168.1443241 | K22: =Лист2!C12 -> 124 | L22: =IF($E$3="0",Лист2!B12^$L$11,1) -> 1 | M22: =Лист2!$B12^M$11 -> 5 | N22: =Лист2!$B12^N$11 -> 25 | O22: =Лист2!$B12^O$11 -> 25 | P22: =Лист2!$B12^P$11 -> 25 | Q22: =Лист2!$B12^Q$11 -> 25
D23: =IF(ISNUMBER(Лист2!C13),MMULT(OFFSET(L23,0,0,1,$J$3),OFFSET($N$3,0,0,$J$3,1)),"") ->  | E23: =MMULT(MMULT(OFFSET(L23,0,0,1,$J$3),икст_1),TRANSPOSE(OFFSET(L23,0,0,1,$J$3))) -> 0.2074592075 | G23: =IF(ISNUMBER(Лист2!C13),D23-$D$10*$E$10*SQRT(E23),"") ->  | H23: =IF(ISNUMBER(Лист2!C13),D23+$D$10*$E$10*SQRT(E23),"") ->  | I23: =IF(ISNUMBER(Лист2!C13),D23-$D$10*$E$10*SQRT(1+E23),"") ->  | J23: =IF(ISNUMBER(Лист2!C13),D23+$D$10*$E$10*SQRT(1+E23),"") ->  | K23: =Лист2!C13 -> 0 | L23: =IF($E$3="0",Лист2!B13^$L$11,1) -> 1 | M23: =Лист2!$B13^M$11 -> 0 | N23: =Лист2!$B13^N$11 -> 0 | O23: =Лист2!$B13^O$11 -> 0 | P23: =Лист2!$B13^P$11 -> 0 | Q23: =Лист2!$B13^Q$11 -> 0
D24: =IF(ISNUMBER(Лист2!C14),MMULT(OFFSET(L24,0,0,1,$J$3),OFFSET($N$3,0,0,$J$3,1)),"") ->  | E24: =MMULT(MMULT(OFFSET(L24,0,0,1,$J$3),икст_1),TRANSPOSE(OFFSET(L24,0,0,1,$J$3))) -> 0.2074592075 | G24: =IF(ISNUMBER(Лист2!C14),D24-$D$10*$E$10*SQRT(E24),"") ->  | H24: =IF(ISNUMBER(Лист2!C14),D24+$D$10*$E$10*SQRT(E24),"") ->  | I24: =IF(ISNUMBER(Лист2!C14),D24-$D$10*$E$10*SQRT(1+E24),"") ->  | J24: =IF(ISNUMBER(Лист2!C14),D24+$D$10*$E$10*SQRT(1+E24),"") ->  | K24: =Лист2!C14 -> 0 | L24: =IF($E$3="0",Лист2!B14^$L$11,1) -> 1 | M24: =Лист2!$B14^M$11 -> 0 | N24: =Лист2!$B14^N$11 -> 0 | O24: =Лист2!$B14^O$11 -> 0 | P24: =Лист2!$B14^P$11 -> 0 | Q24: =Лист2!$B14^Q$11 -> 0
D25: =IF(ISNUMBER(Лист2!C15),MMULT(OFFSET(L25,0,0,1,$J$3),OFFSET($N$3,0,0,$J$3,1)),"") ->  | E25: =MMULT(MMULT(OFFSET(L25,0,0,1,$J$3),икст_1),TRANSPOSE(OFFSET(L25,0,0,1,$J$3))) -> 0.2074592075 | G25: =IF(ISNUMBER(Лист2!C15),D25-$D$10*$E$10*SQRT(E25),"") ->  | H25: =IF(ISNUMBER(Лист2!C15),D25+$D$10*$E$10*SQRT(E25),"") ->  | I25: =IF(ISNUMBER(Лист2!C15),D25-$D$10*$E$10*SQRT(1+E25),"") ->  | J25: =IF(ISNUMBER(Лист2!C15),D25+$D$10*$E$10*SQRT(1+E25),"") ->  | K25: =Лист2!C15 -> 0 | L25: =IF($E$3="0",Лист2!B15^$L$11,1) -> 1 | M25: =Лист2!$B15^M$11 -> 0 | N25: =Лист2!$B15^N$11 -> 0 | O25: =Лист2!$B15^O$11 -> 0 | P25: =Лист2!$B15^P$11 -> 0 | Q25: =Лист2!$B15^Q$11 -> 0
D26: =IF(ISNUMBER(Лист2!C16),MMULT(OFFSET(L26,0,0,1,$J$3),OFFSET($N$3,0,0,$J$3,1)),"") ->  | E26: =MMULT(MMULT(OFFSET(L26,0,0,1,$J$3),икст_1),TRANSPOSE(OFFSET(L26,0,0,1,$J$3))) -> 0.2074592075 | G26: =IF(ISNUMBER(Лист2!C16),D26-$D$10*$E$10*SQRT(E26),"") ->  | H26: =IF(ISNUMBER(Лист2!C16),D26+$D$10*$E$10*SQRT(E26),"") ->  | I26: =IF(ISNUMBER(Лист2!C16),D26-$D$10*$E$10*SQRT(1+E26),"") ->  | J26: =IF(ISNUMBER(Лист2!C16),D26+$D$10*$E$10*SQRT(1+E26),"") ->  | K26: =Лист2!C16 -> 0 | L26: =IF($E$3="0",Лист2!B16^$L$11,1) -> 1 | M26: =Лист2!$B16^M$11 -> 0 | N26: =Лист2!$B16^N$11 -> 0 | O26: =Лист2!$B16^O$11 -> 0 | P26: =Лист2!$B16^P$11 -> 0 | Q26: =Лист2!$B16^Q$11 -> 0
D27: =IF(ISNUMBER(Лист2!C17),MMULT(OFFSET(L27,0,0,1,$J$3),OFFSET($N$3,0,0,$J$3,1)),"") ->  | E27: =MMULT(MMULT(OFFSET(L27,0,0,1,$J$3),икст_1),TRANSPOSE(OFFSET(L27,0,0,1,$J$3))) -> 0.2074592075 | G27: =IF(ISNUMBER(Лист2!C17),D27-$D$10*$E$10*SQRT(E27),"") ->  | H27: =IF(ISNUMBER(Лист2!C17),D27+$D$10*$E$10*SQRT(E27),"") ->  | I27: =IF(ISNUMBER(Лист2!C17),D27-$D$10*$E$10*SQRT(1+E27),"") ->  | J27: =IF(ISNUMBER(Лист2!C17),D27+$D$10*$E$10*SQRT(1+E27),"") ->  | K27: =Лист2!C17 -> 0 | L27: =IF($E$3="0",Лист2!B17^$L$11,1) -> 1 | M27: =Лист2!$B17^M$11 -> 0 | N27: =Лист2!$B17^N$11 -> 0 | O27: =Лист2!$B17^O$11 -> 0 | P27: =Лист2!$B17^P$11 -> 0 | Q27: =Лист2!$B17^Q$11 -> 0
D28: =IF(ISNUMBER(Лист2!C18),MMULT(OFFSET(L28,0,0,1,$J$3),OFFSET($N$3,0,0,$J$3,1)),"") ->  | E28: =MMULT(MMULT(OFFSET(L28,0,0,1,$J$3),икст_1),TRANSPOSE(OFFSET(L28,0,0,1,$J$3))) -> 0.2074592075 | G28: =IF(ISNUMBER(Лист2!C18),D28-$D$10*$E$10*SQRT(E28),"") ->  | H28: =IF(ISNUMBER(Лист2!C18),D28+$D$10*$E$10*SQRT(E28),"") ->  | I28: =IF(ISNUMBER(Лист2!C18),D28-$D$10*$E$10*SQRT(1+E28),"") ->  | J28: =IF(ISNUMBER(Лист2!C18),D28+$D$10*$E$10*SQRT(1+E28),"") ->  | K28: =Лист2!C18 -> 0 | L28: =IF($E$3="0",Лист2!B18^$L$11,1) -> 1 | M28: =Лист2!$B18^M$11 -> 0 | N28: =Лист2!$B18^N$11 -> 0 | O28: =Лист2!$B18^O$11 -> 0 | P28: =Лист2!$B18^P$11 -> 0 | Q28: =Лист2!$B18^Q$11 -> 0
D29: =IF(ISNUMBER(Лист2!C19),MMULT(OFFSET(L29,0,0,1,$J$3),OFFSET($N$3,0,0,$J$3,1)),"") ->  | E29: =MMULT(MMULT(OFFSET(L29,0,0,1,$J$3),икст_1),TRANSPOSE(OFFSET(L29,0,0,1,$J$3))) -> 0.2074592075 | G29: =IF(ISNUMBER(Лист2!C19),D29-$D$10*$E$10*SQRT(E29),"") ->  | H29: =IF(ISNUMBER(Лист2!C19),D29+$D$10*$E$10*SQRT(E29),"") ->  | I29: =IF(ISNUMBER(Лист2!C19),D29-$D$10*$E$10*SQRT(1+E29),"") ->  | J29: =IF(ISNUMBER(Лист2!C19),D29+$D$10*$E$10*SQRT(1+E29),"") ->  | K29: =Лист2!C19 -> 0 | L29: =IF($E$3="0",Лист2!B19^$L$11,1) -> 1 | M29: =Лист2!$B19^M$11 -> 0 | N29: =Лист2!$B19^N$11 -> 0 | O29: =Лист2!$B19^O$11 -> 0 | P29: =Лист2!$B19^P$11 -> 0 | Q29: =Лист2!$B19^Q$11 -> 0
D30: =IF(ISNUMBER(Лист2!C20),MMULT(OFFSET(L30,0,0,1,$J$3),OFFSET($N$3,0,0,$J$3,1)),"") ->  | E30: =MMULT(MMULT(OFFSET(L30,0,0,1,$J$3),икст_1),TRANSPOSE(OFFSET(L30,0,0,1,$J$3))) -> 0.2074592075 | G30: =IF(ISNUMBER(Лист2!C20),D30-$D$10*$E$10*SQRT(E30),"") ->  | H30: =IF(ISNUMBER(Лист2!C20),D30+$D$10*$E$10*SQRT(E30),"") ->  | I30: =IF(ISNUMBER(Лист2!C20),D30-$D$10*$E$10*SQRT(1+E30),"") ->  | J30: =IF(ISNUMBER(Лист2!C20),D30+$D$10*$E$10*SQRT(1+E30),"") ->  | K30: =Лист2!C20 -> 0 | L30: =IF($E$3="0",Лист2!B20^$L$11,1) -> 1 | M30: =Лист2!$B20^M$11 -> 0 | N30: =Лист2!$B20^N$11 -> 0 | O30: =Лист2!$B20^O$11 -> 0 | P30: =Лист2!$B20^P$11 -> 0 | Q30: =Лист2!$B20^Q$11 -> 0
D31: =IF(ISNUMBER(Лист2!C21),MMULT(OFFSET(L31,0,0,1,$J$3),OFFSET($N$3,0,0,$J$3,1)),"") ->  | E31: =MMULT(MMULT(OFFSET(L31,0,0,1,$J$3),икст_1),TRANSPOSE(OFFSET(L31,0,0,1,$J$3))) -> 0.2074592075 | G31: =IF(ISNUMBER(Лист2!C21),D31-$D$10*$E$10*SQRT(E31),"") ->  | H31: =IF(ISNUMBER(Лист2!C21),D31+$D$10*$E$10*SQRT(E31),"") ->  | I31: =IF(ISNUMBER(Лист2!C21),D31-$D$10*$E$10*SQRT(1+E31),"") ->  | J31: =IF(ISNUMBER(Лист2!C21),D31+$D$10*$E$10*SQRT(1+E31),"") ->  | K31: =Лист2!C21 -> 0 | L31: =IF($E$3="0",Лист2!B21^$L$11,1) -> 1 | M31: =Лист2!$B21^M$11 -> 0 | N31: =Лист2!$B21^N$11 -> 0 | O31: =Лист2!$B21^O$11 -> 0 | P31: =Лист2!$B21^P$11 -> 0 | Q31: =Лист2!$B21^Q$11 -> 0
D32: =IF(ISNUMBER(Лист2!C22),MMULT(OFFSET(L32,0,0,1,$J$3),OFFSET($N$3,0,0,$J$3,1)),"") ->  | E32: =MMULT(MMULT(OFFSET(L32,0,0,1,$J$3),икст_1),TRANSPOSE(OFFSET(L32,0,0,1,$J$3))) -> 0.2074592075 | G32: =IF(ISNUMBER(Лист2!C22),D32-$D$10*$E$10*SQRT(E32),"") ->  | H32: =IF(ISNUMBER(Лист2!C22),D32+$D$10*$E$10*SQRT(E32),"") ->  | I32: =IF(ISNUMBER(Лист2!C22),D32-$D$10*$E$10*SQRT(1+E32),"") ->  | J32: =IF(ISNUMBER(Лист2!C22),D32+$D$10*$E$10*SQRT(1+E32),"") ->  | K32: =Лист2!C22 -> 0 | L32: =IF($E$3="0",Лист2!B22^$L$11,1) -> 1 | M32: =Лист2!$B22^M$11 -> 0 | N32: =Лист2!$B22^N$11 -> 0 | O32: =Лист2!$B22^O$11 -> 0 | P32: =Лист2!$B22^P$11 -> 0 | Q32: =Лист2!$B22^Q$11 -> 0
D33: =IF(ISNUMBER(Лист2!C23),MMULT(OFFSET(L33,0,0,1,$J$3),OFFSET($N$3,0,0,$J$3,1)),"") ->  | E33: =MMULT(MMULT(OFFSET(L33,0,0,1,$J$3),икст_1),TRANSPOSE(OFFSET(L33,0,0,1,$J$3))) -> 0.2074592075 | G33: =IF(ISNUMBER(Лист2!C23),D33-$D$10*$E$10*SQRT(E33),"") ->  | H33: =IF(ISNUMBER(Лист2!C23),D33+$D$10*$E$10*SQRT(E33),"") ->  | I33: =IF(ISNUMBER(Лист2!C23),D33-$D$10*$E$10*SQRT(1+E33),"") ->  | J33: =IF(ISNUMBER(Лист2!C23),D33+$D$10*$E$10*SQRT(1+E33),"") ->  | K33: =Лист2!C23 -> 0 | L33: =IF($E$3="0",Лист2!B23^$L$11,1) -> 1 | M33: =Лист2!$B23^M$11 -> 0 | N33: =Лист2!$B23^N$11 -> 0 | O33: =Лист2!$B23^O$11 -> 0 | P33: =Лист2!$B23^P$11 -> 0 | Q33: =Лист2!$B23^Q$11 -> 0
D34: =IF(ISNUMBER(Лист2!C24),MMULT(OFFSET(L34,0,0,1,$J$3),OFFSET($N$3,0,0,$J$3,1)),"") ->  | E34: =MMULT(MMULT(OFFSET(L34,0,0,1,$J$3),икст_1),TRANSPOSE(OFFSET(L34,0,0,1,$J$3))) -> 0.2074592075 | G34: =IF(ISNUMBER(Лист2!C24),D34-$D$10*$E$10*SQRT(E34),"") ->  | H34: =IF(ISNUMBER(Лист2!C24),D34+$D$10*$E$10*SQRT(E34),"") ->  | I34: =IF(ISNUMBER(Лист2!C24),D34-$D$10*$E$10*SQRT(1+E34),"") ->  | J34: =IF(ISNUMBER(Лист2!C24),D34+$D$10*$E$10*SQRT(1+E34),"") ->  | K34: =Лист2!C24 -> 0 | L34: =IF($E$3="0",Лист2!B24^$L$11,1) -> 1 | M34: =Лист2!$B24^M$11 -> 0 | N34: =Лист2!$B24^N$11 -> 0 | O34: =Лист2!$B24^O$11 -> 0 | P34: =Лист2!$B24^P$11 -> 0 | Q34: =Лист2!$B24^Q$11 -> 0
D35: =IF(ISNUMBER(Лист2!C25),MMULT(OFFSET(L35,0,0,1,$J$3),OFFSET($N$3,0,0,$J$3,1)),"") ->  | E35: =MMULT(MMULT(OFFSET(L35,0,0,1,$J$3),икст_1),TRANSPOSE(OFFSET(L35,0,0,1,$J$3))) -> 0.2074592075 | G35: =IF(ISNUMBER(Лист2!C25),D35-$D$10*$E$10*SQRT(E35),"") ->  | H35: =IF(ISNUMBER(Лист2!C25),D35+$D$10*$E$10*SQRT(E35),"") ->  | I35: =IF(ISNUMBER(Лист2!C25),D35-$D$10*$E$10*SQRT(1+E35),"") ->  | J35: =IF(ISNUMBER(Лист2!C25),D35+$D$10*$E$10*SQRT(1+E35),"") ->  | K35: =Лист2!C25 -> 0 | L35: =IF($E$3="0",Лист2!B25^$L$11,1) -> 1 | M35: =Лист2!$B25^M$11 -> 0 | N35: =Лист2!$B25^N$11 -> 0 | O35: =Лист2!$B25^O$11 -> 0 | P35: =Лист2!$B25^P$11 -> 0 | Q35: =Лист2!$B25^Q$11 -> 0
D36: =IF(ISNUMBER(Лист2!C26),MMULT(OFFSET(L36,0,0,1,$J$3),OFFSET($N$3,0,0,$J$3,1)),"") ->  | E36: =MMULT(MMULT(OFFSET(L36,0,0,1,$J$3),икст_1),TRANSPOSE(OFFSET(L36,0,0,1,$J$3))) -> 0.2074592075 | G36: =IF(ISNUMBER(Лист2!C26),D36-$D$10*$E$10*SQRT(E36),"") ->  | H36: =IF(ISNUMBER(Лист2!C26),D36+$D$10*$E$10*SQRT(E36),"") ->  | I36: =IF(ISNUMBER(Лист2!C26),D36-$D$10*$E$10*SQRT(1+E36),"") ->  | J36: =IF(ISNUMBER(Лист2!C26),D36+$D$10*$E$10*SQRT(1+E36),"") ->  | K36: =Лист2!C26 -> 0 | L36: =IF($E$3="0",Лист2!B26^$L$11,1) -> 1 | M36: =Лист2!$B26^M$11 -> 0 | N36: =Лист2!$B26^N$11 -> 0 | O36: =Лист2!$B26^O$11 -> 0 | P36: =Лист2!$B26^P$11 -> 0 | Q36: =Лист2!$B26^Q$11 -> 0
D37: =IF(ISNUMBER(Лист2!C27),MMULT(OFFSET(L37,0,0,1,$J$3),OFFSET($N$3,0,0,$J$3,1)),"") ->  | E37: =MMULT(MMULT(OFFSET(L37,0,0,1,$J$3),икст_1),TRANSPOSE(OFFSET(L37,0,0,1,$J$3))) -> 0.2074592075 | G37: =IF(ISNUMBER(Лист2!C27),D37-$D$10*$E$10*SQRT(E37),"") ->  | H37: =IF(ISNUMBER(Лист2!C27),D37+$D$10*$E$10*SQRT(E37),"") ->  | I37: =IF(ISNUMBER(Лист2!C27),D37-$D$10*$E$10*SQRT(1+E37),"") ->  | J37: =IF(ISNUMBER(Лист2!C27),D37+$D$10*$E$10*SQRT(1+E37),"") ->  | K37: =Лист2!C27 -> 0 | L37: =IF($E$3="0",Лист2!B27^$L$11,1) -> 1 | M37: =Лист2!$B27^M$11 -> 0 | N37: =Лист2!$B27^N$11 -> 0 | O37: =Лист2!$B27^O$11 -> 0 | P37: =Лист2!$B27^P$11 -> 0 | Q37: =Лист2!$B27^Q$11 -> 0
D38: =IF(ISNUMBER(Лист2!C28),MMULT(OFFSET(L38,0,0,1,$J$3),OFFSET($N$3,0,0,$J$3,1)),"") ->  | E38: =MMULT(MMULT(OFFSET(L38,0,0,1,$J$3),икст_1),TRANSPOSE(OFFSET(L38,0,0,1,$J$3))) -> 0.2074592075 | G38: =IF(ISNUMBER(Лист2!C28),D38-$D$10*$E$10*SQRT(E38),"") ->  | H38: =IF(ISNUMBER(Лист2!C28),D38+$D$10*$E$10*SQRT(E38),"") ->  | I38: =IF(ISNUMBER(Лист2!C28),D38-$D$10*$E$10*SQRT(1+E38),"") ->  | J38: =IF(ISNUMBER(Лист2!C28),D38+$D$10*$E$10*SQRT(1+E38),"") ->  | K38: =Лист2!C28 -> 0 | L38: =IF($E$3="0",Лист2!B28^$L$11,1) -> 1 | M38: =Лист2!$B28^M$11 -> 0 | N38: =Лист2!$B28^N$11 -> 0 | O38: =Лист2!$B28^O$11 -> 0 | P38: =Лист2!$B28^P$11 -> 0 | Q38: =Лист2!$B28^Q$11 -> 0
D39: =IF(ISNUMBER(Лист2!C29),MMULT(OFFSET(L39,0,0,1,$J$3),OFFSET($N$3,0,0,$J$3,1)),"") ->  | E39: =MMULT(MMULT(OFFSET(L39,0,0,1,$J$3),икст_1),TRANSPOSE(OFFSET(L39,0,0,1,$J$3))) -> 0.2074592075 | G39: =IF(ISNUMBER(Лист2!C29),D39-$D$10*$E$10*SQRT(E39),"") ->  | H39: =IF(ISNUMBER(Лист2!C29),D39+$D$10*$E$10*SQRT(E39),"") ->  | I39: =IF(ISNUMBER(Лист2!C29),D39-$D$10*$E$10*SQRT(1+E39),"") ->  | J39: =IF(ISNUMBER(Лист2!C29),D39+$D$10*$E$10*SQRT(1+E39),"") ->  | K39: =Лист2!C29 -> 0 | L39: =IF($E$3="0",Лист2!B29^$L$11,1) -> 1 | M39: =Лист2!$B29^M$11 -> 0 | N39: =Лист2!$B29^N$11 -> 0 | O39: =Лист2!$B29^O$11 -> 0 | P39: =Лист2!$B29^P$11 -> 0 | Q39: =Лист2!$B29^Q$11 -> 0
D40: =IF(ISNUMBER(Лист2!C30),MMULT(OFFSET(L40,0,0,1,$J$3),OFFSET($N$3,0,0,$J$3,1)),"") ->  | E40: =MMULT(MMULT(OFFSET(L40,0,0,1,$J$3),икст_1),TRANSPOSE(OFFSET(L40,0,0,1,$J$3))) -> 0.2074592075 | G40: =IF(ISNUMBER(Лист2!C30),D40-$D$10*$E$10*SQRT(E40),"") ->  | H40: =IF(ISNUMBER(Лист2!C30),D40+$D$10*$E$10*SQRT(E40),"") ->  | I40: =IF(ISNUMBER(Лист2!C30),D40-$D$10*$E$10*SQRT(1+E40),"") ->  | J40: =IF(ISNUMBER(Лист2!C30),D40+$D$10*$E$10*SQRT(1+E40),"") ->  | K40: =Лист2!C30 -> 0 | L40: =IF($E$3="0",Лист2!B30^$L$11,1) -> 1 | M40: =Лист2!$B30^M$11 -> 0 | N40: =Лист2!$B30^N$11 -> 0 | O40: =Лист2!$B30^O$11 -> 0 | P40: =Лист2!$B30^P$11 -> 0 | Q40: =Лист2!$B30^Q$11 -> 0
D41: =IF(ISNUMBER(Лист2!C31),MMULT(OFFSET(L41,0,0,1,$J$3),OFFSET($N$3,0,0,$J$3,1)),"") ->  | E41: =MMULT(MMULT(OFFSET(L41,0,0,1,$J$3),икст_1),TRANSPOSE(OFFSET(L41,0,0,1,$J$3))) -> 0.2074592075 | G41: =IF(ISNUMBER(Лист2!C31),D41-$D$10*$E$10*SQRT(E41),"") ->  | H41: =IF(ISNUMBER(Лист2!C31),D41+$D$10*$E$10*SQRT(E41),"") ->  | I41: =IF(ISNUMBER(Лист2!C31),D41-$D$10*$E$10*SQRT(1+E41),"") ->  | J41: =IF(ISNUMBER(Лист2!C31),D41+$D$10*$E$10*SQRT(1+E41),"") ->  | K41: =Лист2!C31 -> 0 | L41: =IF($E$3="0",Лист2!B31^$L$11,1) -> 1 | M41: =Лист2!$B31^M$11 -> 0 | N41: =Лист2!$B31^N$11 -> 0 | O41: =Лист2!$B31^O$11 -> 0 | P41: =Лист2!$B31^P$11 -> 0 | Q41: =Лист2!$B31^Q$11 -> 0
D42: =IF(ISNUMBER(Лист2!C32),MMULT(OFFSET(L42,0,0,1,$J$3),OFFSET($N$3,0,0,$J$3,1)),"") ->  | E42: =MMULT(MMULT(OFFSET(L42,0,0,1,$J$3),икст_1),TRANSPOSE(OFFSET(L42,0,0,1,$J$3))) -> 0.2074592075 | G42: =IF(ISNUMBER(Лист2!C32),D42-$D$10*$E$10*SQRT(E42),"") ->  | H42: =IF(ISNUMBER(Лист2!C32),D42+$D$10*$E$10*SQRT(E42),"") ->  | I42: =IF(ISNUMBER(Лист2!C32),D42-$D$10*$E$10*SQRT(1+E42),"") ->  | J42: =IF(ISNUMBER(Лист2!C32),D42+$D$10*$E$10*SQRT(1+E42),"") ->  | K42: =Лист2!C32 -> 0 | L42: =IF($E$3="0",Лист2!B32^$L$11,1) -> 1 | M42: =Лист2!$B32^M$11 -> 0 | N42: =Лист2!$B32^N$11 -> 0 | O42: =Лист2!$B32^O$11 -> 0 | P42: =Лист2!$B32^P$11 -> 0 | Q42: =Лист2!$B32^Q$11 -> 0
D43: =IF(ISNUMBER(Лист2!C33),MMULT(OFFSET(L43,0,0,1,$J$3),OFFSET($N$3,0,0,$J$3,1)),"") ->  | E43: =MMULT(MMULT(OFFSET(L43,0,0,1,$J$3),икст_1),TRANSPOSE(OFFSET(L43,0,0,1,$J$3))) -> 0.2074592075 | G43: =IF(ISNUMBER(Лист2!C33),D43-$D$10*$E$10*SQRT(E43),"") ->  | H43: =IF(ISNUMBER(Лист2!C33),D43+$D$10*$E$10*SQRT(E43),"") ->  | I43: =IF(ISNUMBER(Лист2!C33),D43-$D$10*$E$10*SQRT(1+E43),"") ->  | J43: =IF(ISNUMBER(Лист2!C33),D43+$D$10*$E$10*SQRT(1+E43),"") ->  | K43: =Лист2!C33 -> 0 | L43: =IF($E$3="0",Лист2!B33^$L$11,1) -> 1 | M43: =Лист2!$B33^M$11 -> 0 | N43: =Лист2!$B33^N$11 -> 0 | O43: =Лист2!$B33^O$11 -> 0 | P43: =Лист2!$B33^P$11 -> 0 | Q43: =Лист2!$B33^Q$11 -> 0
D44: =IF(ISNUMBER(Лист2!C34),MMULT(OFFSET(L44,0,0,1,$J$3),OFFSET($N$3,0,0,$J$3,1)),"") ->  | E44: =MMULT(MMULT(OFFSET(L44,0,0,1,$J$3),икст_1),TRANSPOSE(OFFSET(L44,0,0,1,$J$3))) -> 0.2074592075 | G44: =IF(ISNUMBER(Лист2!C34),D44-$D$10*$E$10*SQRT(E44),"") ->  | H44: =IF(ISNUMBER(Лист2!C34),D44+$D$10*$E$10*SQRT(E44),"") ->  | I44: =IF(ISNUMBER(Лист2!C34),D44-$D$10*$E$10*SQRT(1+E44),"") ->  | J44: =IF(ISNUMBER(Лист2!C34),D44+$D$10*$E$10*SQRT(1+E44),"") ->  | K44: =Лист2!C34 -> 0 | L44: =IF($E$3="0",Лист2!B34^$L$11,1) -> 1 | M44: =Лист2!$B34^M$11 -> 0 | N44: =Лист2!$B34^N$11 -> 0 | O44: =Лист2!$B34^O$11 -> 0 | P44: =Лист2!$B34^P$11 -> 0 | Q44: =Лист2!$B34^Q$11 -> 0
D45: =IF(ISNUMBER(Лист2!C35),MMULT(OFFSET(L45,0,0,1,$J$3),OFFSET($N$3,0,0,$J$3,1)),"") ->  | E45: =MMULT(MMULT(OFFSET(L45,0,0,1,$J$3),икст_1),TRANSPOSE(OFFSET(L45,0,0,1,$J$3))) -> 0.2074592075 | G45: =IF(ISNUMBER(Лист2!C35),D45-$D$10*$E$10*SQRT(E45),"") ->  | H45: =IF(ISNUMBER(Лист2!C35),D45+$D$10*$E$10*SQRT(E45),"") ->  | I45: =IF(ISNUMBER(Лист2!C35),D45-$D$10*$E$10*SQRT(1+E45),"") ->  | J45: =IF(ISNUMBER(Лист2!C35),D45+$D$10*$E$10*SQRT(1+E45),"") ->  | K45: =Лист2!C35 -> 0 | L45: =IF($E$3="0",Лист2!B35^$L$11,1) -> 1 | M45: =Лист2!$B35^M$11 -> 0 | N45: =Лист2!$B35^N$11 -> 0 | O45: =Лист2!$B35^O$11 -> 0 | P45: =Лист2!$B35^P$11 -> 0 | Q45: =Лист2!$B35^Q$11 -> 0
D46: =IF(ISNUMBER(Лист2!C36),MMULT(OFFSET(L46,0,0,1,$J$3),OFFSET($N$3,0,0,$J$3,1)),"") ->  | E46: =MMULT(MMULT(OFFSET(L46,0,0,1,$J$3),икст_1),TRANSPOSE(OFFSET(L46,0,0,1,$J$3))) -> 0.2074592075 | G46: =IF(ISNUMBER(Лист2!C36),D46-$D$10*$E$10*SQRT(E46),"") ->  | H46: =IF(ISNUMBER(Лист2!C36),D46+$D$10*$E$10*SQRT(E46),"") ->  | I46: =IF(ISNUMBER(Лист2!C36),D46-$D$10*$E$10*SQRT(1+E46),"") ->  | J46: =IF(ISNUMBER(Лист2!C36),D46+$D$10*$E$10*SQRT(1+E46),"") ->  | K46: =Лист2!C36 -> 0 | L46: =IF($E$3="0",Лист2!B36^$L$11,1) -> 1 | M46: =Лист2!$B36^M$11 -> 0 | N46: =Лист2!$B36^N$11 -> 0 | O46: =Лист2!$B36^O$11 -> 0 | P46: =Лист2!$B36^P$11 -> 0 | Q46: =Лист2!$B36^Q$11 -> 0
D47: =IF(ISNUMBER(Лист2!C37),MMULT(OFFSET(L47,0,0,1,$J$3),OFFSET($N$3,0,0,$J$3,1)),"") ->  | E47: =MMULT(MMULT(OFFSET(L47,0,0,1,$J$3),икст_1),TRANSPOSE(OFFSET(L47,0,0,1,$J$3))) -> 0.2074592075 | G47: =IF(ISNUMBER(Лист2!C37),D47-$D$10*$E$10*SQRT(E47),"") ->  | H47: =IF(ISNUMBER(Лист2!C37),D47+$D$10*$E$10*SQRT(E47),"") ->  | I47: =IF(ISNUMBER(Лист2!C37),D47-$D$10*$E$10*SQRT(1+E47),"") ->  | J47: =IF(ISNUMBER(Лист2!C37),D47+$D$10*$E$10*SQRT(1+E47),"") ->  | K47: =Лист2!C37 -> 0 | L47: =IF($E$3="0",Лист2!B37^$L$11,1) -> 1 | M47: =Лист2!$B37^M$11 -> 0 | N47: =Лист2!$B37^N$11 -> 0 | O47: =Лист2!$B37^O$11 -> 0 | P47: =Лист2!$B37^P$11 -> 0 | Q47: =Лист2!$B37^Q$11 -> 0
D48: =IF(ISNUMBER(Лист2!C38),MMULT(OFFSET(L48,0,0,1,$J$3),OFFSET($N$3,0,0,$J$3,1)),"") ->  | E48: =MMULT(MMULT(OFFSET(L48,0,0,1,$J$3),икст_1),TRANSPOSE(OFFSET(L48,0,0,1,$J$3))) -> 0.2074592075 | G48: =IF(ISNUMBER(Лист2!C38),D48-$D$10*$E$10*SQRT(E48),"") ->  | H48: =IF(ISNUMBER(Лист2!C38),D48+$D$10*$E$10*SQRT(E48),"") ->  | I48: =IF(ISNUMBER(Лист2!C38),D48-$D$10*$E$10*SQRT(1+E48),"") ->  | J48: =IF(ISNUMBER(Лист2!C38),D48+$D$10*$E$10*SQRT(1+E48),"") ->  | K48: =Лист2!C38 -> 0 | L48: =IF($E$3="0",Лист2!B38^$L$11,1) -> 1 | M48: =Лист2!$B38^M$11 -> 0 | N48: =Лист2!$B38^N$11 -> 0 | O48: =Лист2!$B38^O$11 -> 0 | P48: =Лист2!$B38^P$11 -> 0 | Q48: =Лист2!$B38^Q$11 -> 0
D49: =IF(ISNUMBER(Лист2!C39),MMULT(OFFSET(L49,0,0,1,$J$3),OFFSET($N$3,0,0,$J$3,1)),"") ->  | E49: =MMULT(MMULT(OFFSET(L49,0,0,1,$J$3),икст_1),TRANSPOSE(OFFSET(L49,0,0,1,$J$3))) -> 0.2074592075 | G49: =IF(ISNUMBER(Лист2!C39),D49-$D$10*$E$10*SQRT(E49),"") ->  | H49: =IF(ISNUMBER(Лист2!C39),D49+$D$10*$E$10*SQRT(E49),"") ->  | I49: =IF(ISNUMBER(Лист2!C39),D49-$D$10*$E$10*SQRT(1+E49),"") ->  | J49: =IF(ISNUMBER(Лист2!C39),D49+$D$10*$E$10*SQRT(1+E49),"") ->  | K49: =Лист2!C39 -> 0 | L49: =IF($E$3="0",Лист2!B39^$L$11,1) -> 1 | M49: =Лист2!$B39^M$11 -> 0 | N49: =Лист2!$B39^N$11 -> 0 | O49: =Лист2!$B39^O$11 -> 0 | P49: =Лист2!$B39^P$11 -> 0 | Q49: =Лист2!$B39^Q$11 -> 0
D50: =IF(ISNUMBER(Лист2!C40),MMULT(OFFSET(L50,0,0,1,$J$3),OFFSET($N$3,0,0,$J$3,1)),"") ->  | E50: =MMULT(MMULT(OFFSET(L50,0,0,1,$J$3),икст_1),TRANSPOSE(OFFSET(L50,0,0,1,$J$3))) -> 0.2074592075 | G50: =IF(ISNUMBER(Лист2!C40),D50-$D$10*$E$10*SQRT(E50),"") ->  | H50: =IF(ISNUMBER(Лист2!C40),D50+$D$10*$E$10*SQRT(E50),"") ->  | I50: =IF(ISNUMBER(Лист2!C40),D50-$D$10*$E$10*SQRT(1+E50),"") ->  | J50: =IF(ISNUMBER(Лист2!C40),D50+$D$10*$E$10*SQRT(1+E50),"") ->  | K50: =Лист2!C40 -> 0 | L50: =IF($E$3="0",Лист2!B40^$L$11,1) -> 1 | M50: =Лист2!$B40^M$11 -> 0 | N50: =Лист2!$B40^N$11 -> 0 | O50: =Лист2!$B40^O$11 -> 0 | P50: =Лист2!$B40^P$11 -> 0 | Q50: =Лист2!$B40^Q$11 -> 0
D51: =IF(ISNUMBER(Лист2!C41),MMULT(OFFSET(L51,0,0,1,$J$3),OFFSET($N$3,0,0,$J$3,1)),"") ->  | E51: =MMULT(MMULT(OFFSET(L51,0,0,1,$J$3),икст_1),TRANSPOSE(OFFSET(L51,0,0,1,$J$3))) -> 0.2074592075 | G51: =IF(ISNUMBER(Лист2!C41),D51-$D$10*$E$10*SQRT(E51),"") ->  | H51: =IF(ISNUMBER(Лист2!C41),D51+$D$10*$E$10*SQRT(E51),"") ->  | I51: =IF(ISNUMBER(Лист2!C41),D51-$D$10*$E$10*SQRT(1+E51),"") ->  | J51: =IF(ISNUMBER(Лист2!C41),D51+$D$10*$E$10*SQRT(1+E51),"") ->  | K51: =Лист2!C41 -> 0 | L51: =IF($E$3="0",Лист2!B41^$L$11,1) -> 1 | M51: =Лист2!$B41^M$11 -> 0 | N51: =Лист2!$B41^N$11 -> 0 | O51: =Лист2!$B41^O$11 -> 0 | P51: =Лист2!$B41^P$11 -> 0 | Q51: =Лист2!$B41^Q$11 -> 0
D52: =IF(ISNUMBER(Лист2!C42),MMULT(OFFSET(L52,0,0,1,$J$3),OFFSET($N$3,0,0,$J$3,1)),"") ->  | E52: =MMULT(MMULT(OFFSET(L52,0,0,1,$J$3),икст_1),TRANSPOSE(OFFSET(L52,0,0,1,$J$3))) -> 0.2074592075 | G52: =IF(ISNUMBER(Лист2!C42),D52-$D$10*$E$10*SQRT(E52),"") ->  | H52: =IF(ISNUMBER(Лист2!C42),D52+$D$10*$E$10*SQRT(E52),"") ->  | I52: =IF(ISNUMBER(Лист2!C42),D52-$D$10*$E$10*SQRT(1+E52),"") ->  | J52: =IF(ISNUMBER(Лист2!C42),D52+$D$10*$E$10*SQRT(1+E52),"") ->  | K52: =Лист2!C42 -> 0 | L52: =IF($E$3="0",Лист2!B42^$L$11,1) -> 1 | M52: =Лист2!$B42^M$11 -> 0 | N52: =Лист2!$B42^N$11 -> 0 | O52: =Лист2!$B42^O$11 -> 0 | P52: =Лист2!$B42^P$11 -> 0 | Q52: =Лист2!$B42^Q$11 -> 0
D53: =IF(ISNUMBER(Лист2!C43),MMULT(OFFSET(L53,0,0,1,$J$3),OFFSET($N$3,0,0,$J$3,1)),"") ->  | E53: =MMULT(MMULT(OFFSET(L53,0,0,1,$J$3),икст_1),TRANSPOSE(OFFSET(L53,0,0,1,$J$3))) -> 0.2074592075 | G53: =IF(ISNUMBER(Лист2!C43),D53-$D$10*$E$10*SQRT(E53),"") ->  | H53: =IF(ISNUMBER(Лист2!C43),D53+$D$10*$E$10*SQRT(E53),"") ->  | I53: =IF(ISNUMBER(Лист2!C43),D53-$D$10*$E$10*SQRT(1+E53),"") ->  | J53: =IF(ISNUMBER(Лист2!C43),D53+$D$10*$E$10*SQRT(1+E53),"") ->  | K53: =Лист2!C43 -> 0 | L53: =IF($E$3="0",Лист2!B43^$L$11,1) -> 1 | M53: =Лист2!$B43^M$11 -> 0 | N53: =Лист2!$B43^N$11 -> 0 | O53: =Лист2!$B43^O$11 -> 0 | P53: =Лист2!$B43^P$11 -> 0 | Q53: =Лист2!$B43^Q$11 -> 0
D54: =IF(ISNUMBER(Лист2!C44),MMULT(OFFSET(L54,0,0,1,$J$3),OFFSET($N$3,0,0,$J$3,1)),"") ->  | E54: =MMULT(MMULT(OFFSET(L54,0,0,1,$J$3),икст_1),TRANSPOSE(OFFSET(L54,0,0,1,$J$3))) -> 0.2074592075 | G54: =IF(ISNUMBER(Лист2!C44),D54-$D$10*$E$10*SQRT(E54),"") ->  | H54: =IF(ISNUMBER(Лист2!C44),D54+$D$10*$E$10*SQRT(E54),"") ->  | I54: =IF(ISNUMBER(Лист2!C44),D54-$D$10*$E$10*SQRT(1+E54),"") ->  | J54: =IF(ISNUMBER(Лист2!C44),D54+$D$10*$E$10*SQRT(1+E54),"") ->  | K54: =Лист2!C44 -> 0 | L54: =IF($E$3="0",Лист2!B44^$L$11,1) -> 1 | M54: =Лист2!$B44^M$11 -> 0 | N54: =Лист2!$B44^N$11 -> 0 | O54: =Лист2!$B44^O$11 -> 0 | P54: =Лист2!$B44^P$11 -> 0 | Q54: =Лист2!$B44^Q$11 -> 0
D55: =IF(ISNUMBER(Лист2!C45),MMULT(OFFSET(L55,0,0,1,$J$3),OFFSET($N$3,0,0,$J$3,1)),"") ->  | E55: =MMULT(MMULT(OFFSET(L55,0,0,1,$J$3),икст_1),TRANSPOSE(OFFSET(L55,0,0,1,$J$3))) -> 0.2074592075 | G55: =IF(ISNUMBER(Лист2!C45),D55-$D$10*$E$10*SQRT(E55),"") ->  | H55: =IF(ISNUMBER(Лист2!C45),D55+$D$10*$E$10*SQRT(E55),"") ->  | I55: =IF(ISNUMBER(Лист2!C45),D55-$D$10*$E$10*SQRT(1+E55),"") ->  | J55: =IF(ISNUMBER(Лист2!C45),D55+$D$10*$E$10*SQRT(1+E55),"") ->  | K55: =Лист2!C45 -> 0 | L55: =IF($E$3="0",Лист2!B45^$L$11,1) -> 1 | M55: =Лист2!$B45^M$11 -> 0 | N55: =Лист2!$B45^N$11 -> 0 | O55: =Лист2!$B45^O$11 -> 0 | P55: =Лист2!$B45^P$11 -> 0 | Q55: =Лист2!$B45^Q$11 -> 0
D56: =IF(ISNUMBER(Лист2!C46),MMULT(OFFSET(L56,0,0,1,$J$3),OFFSET($N$3,0,0,$J$3,1)),"") ->  | E56: =MMULT(MMULT(OFFSET(L56,0,0,1,$J$3),икст_1),TRANSPOSE(OFFSET(L56,0,0,1,$J$3))) -> 0.2074592075 | G56: =IF(ISNUMBER(Лист2!C46),D56-$D$10*$E$10*SQRT(E56),"") ->  | H56: =IF(ISNUMBER(Лист2!C46),D56+$D$10*$E$10*SQRT(E56),"") ->  | I56: =IF(ISNUMBER(Лист2!C46),D56-$D$10*$E$10*SQRT(1+E56),"") ->  | J56: =IF(ISNUMBER(Лист2!C46),D56+$D$10*$E$10*SQRT(1+E56),"") ->  | K56: =Лист2!C46 -> 0 | L56: =IF($E$3="0",Лист2!B46^$L$11,1) -> 1 | M56: =Лист2!$B46^M$11 -> 0 | N56: =Лист2!$B46^N$11 -> 0 | O56: =Лист2!$B46^O$11 -> 0 | P56: =Лист2!$B46^P$11 -> 0 | Q56: =Лист2!$B46^Q$11 -> 0
D57: =IF(ISNUMBER(Лист2!C47),MMULT(OFFSET(L57,0,0,1,$J$3),OFFSET($N$3,0,0,$J$3,1)),"") ->  | E57: =MMULT(MMULT(OFFSET(L57,0,0,1,$J$3),икст_1),TRANSPOSE(OFFSET(L57,0,0,1,$J$3))) -> 0.2074592075 | G57: =IF(ISNUMBER(Лист2!C47),D57-$D$10*$E$10*SQRT(E57),"") ->  | H57: =IF(ISNUMBER(Лист2!C47),D57+$D$10*$E$10*SQRT(E57),"") ->  | I57: =IF(ISNUMBER(Лист2!C47),D57-$D$10*$E$10*SQRT(1+E57),"") ->  | J57: =IF(ISNUMBER(Лист2!C47),D57+$D$10*$E$10*SQRT(1+E57),"") ->  | K57: =Лист2!C47 -> 0 | L57: =IF($E$3="0",Лист2!B47^$L$11,1) -> 1 | M57: =Лист2!$B47^M$11 -> 0 | N57: =Лист2!$B47^N$11 -> 0 | O57: =Лист2!$B47^O$11 -> 0 | P57: =Лист2!$B47^P$11 -> 0 | Q57: =Лист2!$B47^Q$11 -> 0
D58: =IF(ISNUMBER(Лист2!C48),MMULT(OFFSET(L58,0,0,1,$J$3),OFFSET($N$3,0,0,$J$3,1)),"") ->  | E58: =MMULT(MMULT(OFFSET(L58,0,0,1,$J$3),икст_1),TRANSPOSE(OFFSET(L58,0,0,1,$J$3))) -> 0.2074592075 | G58: =IF(ISNUMBER(Лист2!C48),D58-$D$10*$E$10*SQRT(E58),"") ->  | H58: =IF(ISNUMBER(Лист2!C48),D58+$D$10*$E$10*SQRT(E58),"") ->  | I58: =IF(ISNUMBER(Лист2!C48),D58-$D$10*$E$10*SQRT(1+E58),"") ->  | J58: =IF(ISNUMBER(Лист2!C48),D58+$D$10*$E$10*SQRT(1+E58),"") ->  | K58: =Лист2!C48 -> 0 | L58: =IF($E$3="0",Лист2!B48^$L$11,1) -> 1 | M58: =Лист2!$B48^M$11 -> 0 | N58: =Лист2!$B48^N$11 -> 0 | O58: =Лист2!$B48^O$11 -> 0 | P58: =Лист2!$B48^P$11 -> 0 | Q58: =Лист2!$B48^Q$11 -> 0
D59: =IF(ISNUMBER(Лист2!C49),MMULT(OFFSET(L59,0,0,1,$J$3),OFFSET($N$3,0,0,$J$3,1)),"") ->  | E59: =MMULT(MMULT(OFFSET(L59,0,0,1,$J$3),икст_1),TRANSPOSE(OFFSET(L59,0,0,1,$J$3))) -> 0.2074592075 | G59: =IF(ISNUMBER(Лист2!C49),D59-$D$10*$E$10*SQRT(E59),"") ->  | H59: =IF(ISNUMBER(Лист2!C49),D59+$D$10*$E$10*SQRT(E59),"") ->  | I59: =IF(ISNUMBER(Лист2!C49),D59-$D$10*$E$10*SQRT(1+E59),"") ->  | J59: =IF(ISNUMBER(Лист2!C49),D59+$D$10*$E$10*SQRT(1+E59),"") ->  | K59: =Лист2!C49 -> 0 | L59: =IF($E$3="0",Лист2!B49^$L$11,1) -> 1 | M59: =Лист2!$B49^M$11 -> 0 | N59: =Лист2!$B49^N$11 -> 0 | O59: =Лист2!$B49^O$11 -> 0 | P59: =Лист2!$B49^P$11 -> 0 | Q59: =Лист2!$B49^Q$11 -> 0
D60: =IF(ISNUMBER(Лист2!C50),MMULT(OFFSET(L60,0,0,1,$J$3),OFFSET($N$3,0,0,$J$3,1)),"") ->  | E60: =MMULT(MMULT(OFFSET(L60,0,0,1,$J$3),икст_1),TRANSPOSE(OFFSET(L60,0,0,1,$J$3))) -> 0.2074592075 | G60: =IF(ISNUMBER(Лист2!C50),D60-$D$10*$E$10*SQRT(E60),"") ->  | H60: =IF(ISNUMBER(Лист2!C50),D60+$D$10*$E$10*SQRT(E60),"") ->  | I60: =IF(ISNUMBER(Лист2!C50),D60-$D$10*$E$10*SQRT(1+E60),"") ->  | J60: =IF(ISNUMBER(Лист2!C50),D60+$D$10*$E$10*SQRT(1+E60),"") ->  | K60: =Лист2!C50 -> 0 | L60: =IF($E$3="0",Лист2!B50^$L$11,1) -> 1 | M60: =Лист2!$B50^M$11 -> 0 | N60: =Лист2!$B50^N$11 -> 0 | O60: =Лист2!$B50^O$11 -> 0 | P60: =Лист2!$B50^P$11 -> 0 | Q60: =Лист2!$B50^Q$11 -> 0
D61: =IF(ISNUMBER(Лист2!C51),MMULT(OFFSET(L61,0,0,1,$J$3),OFFSET($N$3,0,0,$J$3,1)),"") ->  | E61: =MMULT(MMULT(OFFSET(L61,0,0,1,$J$3),икст_1),TRANSPOSE(OFFSET(L61,0,0,1,$J$3))) -> 0.2074592075 | G61: =IF(ISNUMBER(Лист2!C51),D61-$D$10*$E$10*SQRT(E61),"") ->  | H61: =IF(ISNUMBER(Лист2!C51),D61+$D$10*$E$10*SQRT(E61),"") ->  | I61: =IF(ISNUMBER(Лист2!C51),D61-$D$10*$E$10*SQRT(1+E61),"") ->  | J61: =IF(ISNUMBER(Лист2!C51),D61+$D$10*$E$10*SQRT(1+E61),"") ->  | K61: =Лист2!C51 -> 0 | L61: =IF($E$3="0",Лист2!B51^$L$11,1) -> 1 | M61: =Лист2!$B51^M$11 -> 0 | N61: =Лист2!$B51^N$11 -> 0 | O61: =Лист2!$B51^O$11 -> 0 | P61: =Лист2!$B51^P$11 -> 0 | Q61: =Лист2!$B51^Q$11 -> 0
D62: =IF(ISNUMBER(Лист2!C52),MMULT(OFFSET(L62,0,0,1,$J$3),OFFSET($N$3,0,0,$J$3,1)),"") ->  | E62: =MMULT(MMULT(OFFSET(L62,0,0,1,$J$3),икст_1),TRANSPOSE(OFFSET(L62,0,0,1,$J$3))) -> 0.2074592075 | G62: =IF(ISNUMBER(Лист2!C52),D62-$D$10*$E$10*SQRT(E62),"") ->  | H62: =IF(ISNUMBER(Лист2!C52),D62+$D$10*$E$10*SQRT(E62),"") ->  | I62: =IF(ISNUMBER(Лист2!C52),D62-$D$10*$E$10*SQRT(1+E62),"") ->  | J62: =IF(ISNUMBER(Лист2!C52),D62+$D$10*$E$10*SQRT(1+E62),"") ->  | K62: =Лист2!C52 -> 0 | L62: =IF($E$3="0",Лист2!B52^$L$11,1) -> 1 | M62: =Лист2!$B52^M$11 -> 0 | N62: =Лист2!$B52^N$11 -> 0 | O62: =Лист2!$B52^O$11 -> 0 | P62: =Лист2!$B52^P$11 -> 0 | Q62: =Лист2!$B52^Q$11 -> 0
D63: =IF(ISNUMBER(Лист2!C53),MMULT(OFFSET(L63,0,0,1,$J$3),OFFSET($N$3,0,0,$J$3,1)),"") ->  | E63: =MMULT(MMULT(OFFSET(L63,0,0,1,$J$3),икст_1),TRANSPOSE(OFFSET(L63,0,0,1,$J$3))) -> 0.2074592075 | G63: =IF(ISNUMBER(Лист2!C53),D63-$D$10*$E$10*SQRT(E63),"") ->  | H63: =IF(ISNUMBER(Лист2!C53),D63+$D$10*$E$10*SQRT(E63),"") ->  | I63: =IF(ISNUMBER(Лист2!C53),D63-$D$10*$E$10*SQRT(1+E63),"") ->  | J63: =IF(ISNUMBER(Лист2!C53),D63+$D$10*$E$10*SQRT(1+E63),"") ->  | K63: =Лист2!C53 -> 0 | L63: =IF($E$3="0",Лист2!B53^$L$11,1) -> 1 | M63: =Лист2!$B53^M$11 -> 0 | N63: =Лист2!$B53^N$11 -> 0 | O63: =Лист2!$B53^O$11 -> 0 | P63: =Лист2!$B53^P$11 -> 0 | Q63: =Лист2!$B53^Q$11 -> 0
D64: =IF(ISNUMBER(Лист2!C54),MMULT(OFFSET(L64,0,0,1,$J$3),OFFSET($N$3,0,0,$J$3,1)),"") ->  | E64: =MMULT(MMULT(OFFSET(L64,0,0,1,$J$3),икст_1),TRANSPOSE(OFFSET(L64,0,0,1,$J$3))) -> 0.2074592075 | G64: =IF(ISNUMBER(Лист2!C54),D64-$D$10*$E$10*SQRT(E64),"") ->  | H64: =IF(ISNUMBER(Лист2!C54),D64+$D$10*$E$10*SQRT(E64),"") ->  | I64: =IF(ISNUMBER(Лист2!C54),D64-$D$10*$E$10*SQRT(1+E64),"") ->  | J64: =IF(ISNUMBER(Лист2!C54),D64+$D$10*$E$10*SQRT(1+E64),"") ->  | K64: =Лист2!C54 -> 0 | L64: =IF($E$3="0",Лист2!B54^$L$11,1) -> 1 | M64: =Лист2!$B54^M$11 -> 0 | N64: =Лист2!$B54^N$11 -> 0 | O64: =Лист2!$B54^O$11 -> 0 | P64: =Лист2!$B54^P$11 -> 0 | Q64: =Лист2!$B54^Q$11 -> 0
D65: =IF(ISNUMBER(Лист2!C55),MMULT(OFFSET(L65,0,0,1,$J$3),OFFSET($N$3,0,0,$J$3,1)),"") ->  | E65: =MMULT(MMULT(OFFSET(L65,0,0,1,$J$3),икст_1),TRANSPOSE(OFFSET(L65,0,0,1,$J$3))) -> 0.2074592075 | G65: =IF(ISNUMBER(Лист2!C55),D65-$D$10*$E$10*SQRT(E65),"") ->  | H65: =IF(ISNUMBER(Лист2!C55),D65+$D$10*$E$10*SQRT(E65),"") ->  | I65: =IF(ISNUMBER(Лист2!C55),D65-$D$10*$E$10*SQRT(1+E65),"") ->  | J65: =IF(ISNUMBER(Лист2!C55),D65+$D$10*$E$10*SQRT(1+E65),"") ->  | K65: =Лист2!C55 -> 0 | L65: =IF($E$3="0",Лист2!B55^$L$11,1) -> 1 | M65: =Лист2!$B55^M$11 -> 0 | N65: =Лист2!$B55^N$11 -> 0 | O65: =Лист2!$B55^O$11 -> 0 | P65: =Лист2!$B55^P$11 -> 0 | Q65: =Лист2!$B55^Q$11 -> 0
D66: =IF(ISNUMBER(Лист2!C56),MMULT(OFFSET(L66,0,0,1,$J$3),OFFSET($N$3,0,0,$J$3,1)),"") ->  | E66: =MMULT(MMULT(OFFSET(L66,0,0,1,$J$3),икст_1),TRANSPOSE(OFFSET(L66,0,0,1,$J$3))) -> 0.2074592075 | G66: =IF(ISNUMBER(Лист2!C56),D66-$D$10*$E$10*SQRT(E66),"") ->  | H66: =IF(ISNUMBER(Лист2!C56),D66+$D$10*$E$10*SQRT(E66),"") ->  | I66: =IF(ISNUMBER(Лист2!C56),D66-$D$10*$E$10*SQRT(1+E66),"") ->  | J66: =IF(ISNUMBER(Лист2!C56),D66+$D$10*$E$10*SQRT(1+E66),"") ->  | K66: =Лист2!C56 -> 0 | L66: =IF($E$3="0",Лист2!B56^$L$11,1) -> 1 | M66: =Лист2!$B56^M$11 -> 0 | N66: =Лист2!$B56^N$11 -> 0 | O66: =Лист2!$B56^O$11 -> 0 | P66: =Лист2!$B56^P$11 -> 0 | Q66: =Лист2!$B56^Q$11 -> 0
D67: =IF(ISNUMBER(Лист2!C57),MMULT(OFFSET(L67,0,0,1,$J$3),OFFSET($N$3,0,0,$J$3,1)),"") ->  | E67: =MMULT(MMULT(OFFSET(L67,0,0,1,$J$3),икст_1),TRANSPOSE(OFFSET(L67,0,0,1,$J$3))) -> 0.2074592075 | G67: =IF(ISNUMBER(Лист2!C57),D67-$D$10*$E$10*SQRT(E67),"") ->  | H67: =IF(ISNUMBER(Лист2!C57),D67+$D$10*$E$10*SQRT(E67),"") ->  | I67: =IF(ISNUMBER(Лист2!C57),D67-$D$10*$E$10*SQRT(1+E67),"") ->  | J67: =IF(ISNUMBER(Лист2!C57),D67+$D$10*$E$10*SQRT(1+E67),"") ->  | K67: =Лист2!C57 -> 0 | L67: =IF($E$3="0",Лист2!B57^$L$11,1) -> 1 | M67: =Лист2!$B57^M$11 -> 0 | N67: =Лист2!$B57^N$11 -> 0 | O67: =Лист2!$B57^O$11 -> 0 | P67: =Лист2!$B57^P$11 -> 0 | Q67: =Лист2!$B57^Q$11 -> 0
D68: =IF(ISNUMBER(Лист2!C58),MMULT(OFFSET(L68,0,0,1,$J$3),OFFSET($N$3,0,0,$J$3,1)),"") ->  | E68: =MMULT(MMULT(OFFSET(L68,0,0,1,$J$3),икст_1),TRANSPOSE(OFFSET(L68,0,0,1,$J$3))) -> 0.2074592075 | G68: =IF(ISNUMBER(Лист2!C58),D68-$D$10*$E$10*SQRT(E68),"") ->  | H68: =IF(ISNUMBER(Лист2!C58),D68+$D$10*$E$10*SQRT(E68),"") ->  | I68: =IF(ISNUMBER(Лист2!C58),D68-$D$10*$E$10*SQRT(1+E68),"") ->  | J68: =IF(ISNUMBER(Лист2!C58),D68+$D$10*$E$10*SQRT(1+E68),"") ->  | K68: =Лист2!C58 -> 0 | L68: =IF($E$3="0",Лист2!B58^$L$11,1) -> 1 | M68: =Лист2!$B58^M$11 -> 0 | N68: =Лист2!$B58^N$11 -> 0 | O68: =Лист2!$B58^O$11 -> 0 | P68: =Лист2!$B58^P$11 -> 0 | Q68: =Лист2!$B58^Q$11 -> 0
D69: =IF(ISNUMBER(Лист2!C59),MMULT(OFFSET(L69,0,0,1,$J$3),OFFSET($N$3,0,0,$J$3,1)),"") ->  | E69: =MMULT(MMULT(OFFSET(L69,0,0,1,$J$3),икст_1),TRANSPOSE(OFFSET(L69,0,0,1,$J$3))) -> 0.2074592075 | G69: =IF(ISNUMBER(Лист2!C59),D69-$D$10*$E$10*SQRT(E69),"") ->  | H69: =IF(ISNUMBER(Лист2!C59),D69+$D$10*$E$10*SQRT(E69),"") ->  | I69: =IF(ISNUMBER(Лист2!C59),D69-$D$10*$E$10*SQRT(1+E69),"") ->  | J69: =IF(ISNUMBER(Лист2!C59),D69+$D$10*$E$10*SQRT(1+E69),"") ->  | K69: =Лист2!C59 -> 0 | L69: =IF($E$3="0",Лист2!B59^$L$11,1) -> 1 | M69: =Лист2!$B59^M$11 -> 0 | N69: =Лист2!$B59^N$11 -> 0 | O69: =Лист2!$B59^O$11 -> 0 | P69: =Лист2!$B59^P$11 -> 0 | Q69: =Лист2!$B59^Q$11 -> 0
D70: =IF(ISNUMBER(Лист2!C60),MMULT(OFFSET(L70,0,0,1,$J$3),OFFSET($N$3,0,0,$J$3,1)),"") ->  | E70: =MMULT(MMULT(OFFSET(L70,0,0,1,$J$3),икст_1),TRANSPOSE(OFFSET(L70,0,0,1,$J$3))) -> 0.2074592075 | G70: =IF(ISNUMBER(Лист2!C60),D70-$D$10*$E$10*SQRT(E70),"") ->  | H70: =IF(ISNUMBER(Лист2!C60),D70+$D$10*$E$10*SQRT(E70),"") ->  | I70: =IF(ISNUMBER(Лист2!C60),D70-$D$10*$E$10*SQRT(1+E70),"") ->  | J70: =IF(ISNUMBER(Лист2!C60),D70+$D$10*$E$10*SQRT(1+E70),"") ->  | K70: =Лист2!C60 -> 0 | L70: =IF($E$3="0",Лист2!B60^$L$11,1) -> 1 | M70: =Лист2!$B60^M$11 -> 0 | N70: =Лист2!$B60^N$11 -> 0 | O70: =Лист2!$B60^O$11 -> 0 | P70: =Лист2!$B60^P$11 -> 0 | Q70: =Лист2!$B60^Q$11 -> 0
D71: =IF(ISNUMBER(Лист2!C61),MMULT(OFFSET(L71,0,0,1,$J$3),OFFSET($N$3,0,0,$J$3,1)),"") ->  | E71: =MMULT(MMULT(OFFSET(L71,0,0,1,$J$3),икст_1),TRANSPOSE(OFFSET(L71,0,0,1,$J$3))) -> 0.2074592075 | G71: =IF(ISNUMBER(Лист2!C61),D71-$D$10*$E$10*SQRT(E71),"") ->  | H71: =IF(ISNUMBER(Лист2!C61),D71+$D$10*$E$10*SQRT(E71),"") ->  | I71: =IF(ISNUMBER(Лист2!C61),D71-$D$10*$E$10*SQRT(1+E71),"") ->  | J71: =IF(ISNUMBER(Лист2!C61),D71+$D$10*$E$10*SQRT(1+E71),"") ->  | K71: =Лист2!C61 -> 0 | L71: =IF($E$3="0",Лист2!B61^$L$11,1) -> 1 | M71: =Лист2!$B61^M$11 -> 0 | N71: =Лист2!$B61^N$11 -> 0 | O71: =Лист2!$B61^O$11 -> 0 | P71: =Лист2!$B61^P$11 -> 0 | Q71: =Лист2!$B61^Q$11 -> 0
D72: =IF(ISNUMBER(Лист2!C62),MMULT(OFFSET(L72,0,0,1,$J$3),OFFSET($N$3,0,0,$J$3,1)),"") ->  | E72: =MMULT(MMULT(OFFSET(L72,0,0,1,$J$3),икст_1),TRANSPOSE(OFFSET(L72,0,0,1,$J$3))) -> 0.2074592075 | G72: =IF(ISNUMBER(Лист2!C62),D72-$D$10*$E$10*SQRT(E72),"") ->  | H72: =IF(ISNUMBER(Лист2!C62),D72+$D$10*$E$10*SQRT(E72),"") ->  | I72: =IF(ISNUMBER(Лист2!C62),D72-$D$10*$E$10*SQRT(1+E72),"") ->  | J72: =IF(ISNUMBER(Лист2!C62),D72+$D$10*$E$10*SQRT(1+E72),"") ->  | K72: =Лист2!C62 -> 0 | L72: =IF($E$3="0",Лист2!B62^$L$11,1) -> 1 | M72: =Лист2!$B62^M$11 -> 0 | N72: =Лист2!$B62^N$11 -> 0 | O72: =Лист2!$B62^O$11 -> 0 | P72: =Лист2!$B62^P$11 -> 0 | Q72: =Лист2!$B62^Q$11 -> 0
D73: =IF(ISNUMBER(Лист2!C63),MMULT(OFFSET(L73,0,0,1,$J$3),OFFSET($N$3,0,0,$J$3,1)),"") ->  | E73: =MMULT(MMULT(OFFSET(L73,0,0,1,$J$3),икст_1),TRANSPOSE(OFFSET(L73,0,0,1,$J$3))) -> 0.2074592075 | G73: =IF(ISNUMBER(Лист2!C63),D73-$D$10*$E$10*SQRT(E73),"") ->  | H73: =IF(ISNUMBER(Лист2!C63),D73+$D$10*$E$10*SQRT(E73),"") ->  | I73: =IF(ISNUMBER(Лист2!C63),D73-$D$10*$E$10*SQRT(1+E73),"") ->  | J73: =IF(ISNUMBER(Лист2!C63),D73+$D$10*$E$10*SQRT(1+E73),"") ->  | K73: =Лист2!C63 -> 0 | L73: =IF($E$3="0",Лист2!B63^$L$11,1) -> 1 | M73: =Лист2!$B63^M$11 -> 0 | N73: =Лист2!$B63^N$11 -> 0 | O73: =Лист2!$B63^O$11 -> 0 | P73: =Лист2!$B63^P$11 -> 0 | Q73: =Лист2!$B63^Q$11 -> 0
D74: =IF(ISNUMBER(Лист2!C64),MMULT(OFFSET(L74,0,0,1,$J$3),OFFSET($N$3,0,0,$J$3,1)),"") ->  | E74: =MMULT(MMULT(OFFSET(L74,0,0,1,$J$3),икст_1),TRANSPOSE(OFFSET(L74,0,0,1,$J$3))) -> 0.2074592075 | G74: =IF(ISNUMBER(Лист2!C64),D74-$D$10*$E$10*SQRT(E74),"") ->  | H74: =IF(ISNUMBER(Лист2!C64),D74+$D$10*$E$10*SQRT(E74),"") ->  | I74: =IF(ISNUMBER(Лист2!C64),D74-$D$10*$E$10*SQRT(1+E74),"") ->  | J74: =IF(ISNUMBER(Лист2!C64),D74+$D$10*$E$10*SQRT(1+E74),"") ->  | K74: =Лист2!C64 -> 0 | L74: =IF($E$3="0",Лист2!B64^$L$11,1) -> 1 | M74: =Лист2!$B64^M$11 -> 0 | N74: =Лист2!$B64^N$11 -> 0 | O74: =Лист2!$B64^O$11 -> 0 | P74: =Лист2!$B64^P$11 -> 0 | Q74: =Лист2!$B64^Q$11 -> 0
D75: =IF(ISNUMBER(Лист2!C65),MMULT(OFFSET(L75,0,0,1,$J$3),OFFSET($N$3,0,0,$J$3,1)),"") ->  | E75: =MMULT(MMULT(OFFSET(L75,0,0,1,$J$3),икст_1),TRANSPOSE(OFFSET(L75,0,0,1,$J$3))) -> 0.2074592075 | G75: =IF(ISNUMBER(Лист2!C65),D75-$D$10*$E$10*SQRT(E75),"") ->  | H75: =IF(ISNUMBER(Лист2!C65),D75+$D$10*$E$10*SQRT(E75),"") ->  | I75: =IF(ISNUMBER(Лист2!C65),D75-$D$10*$E$10*SQRT(1+E75),"") ->  | J75: =IF(ISNUMBER(Лист2!C65),D75+$D$10*$E$10*SQRT(1+E75),"") ->  | K75: =Лист2!C65 -> 0 | L75: =IF($E$3="0",Лист2!B65^$L$11,1) -> 1 | M75: =Лист2!$B65^M$11 -> 0 | N75: =Лист2!$B65^N$11 -> 0 | O75: =Лист2!$B65^O$11 -> 0 | P75: =Лист2!$B65^P$11 -> 0 | Q75: =Лист2!$B65^Q$11 -> 0
D76: =IF(ISNUMBER(Лист2!C66),MMULT(OFFSET(L76,0,0,1,$J$3),OFFSET($N$3,0,0,$J$3,1)),"") ->  | E76: =MMULT(MMULT(OFFSET(L76,0,0,1,$J$3),икст_1),TRANSPOSE(OFFSET(L76,0,0,1,$J$3))) -> 0.2074592075 | G76: =IF(ISNUMBER(Лист2!C66),D76-$D$10*$E$10*SQRT(E76),"") ->  | H76: =IF(ISNUMBER(Лист2!C66),D76+$D$10*$E$10*SQRT(E76),"") ->  | I76: =IF(ISNUMBER(Лист2!C66),D76-$D$10*$E$10*SQRT(1+E76),"") ->  | J76: =IF(ISNUMBER(Лист2!C66),D76+$D$10*$E$10*SQRT(1+E76),"") ->  | K76: =Лист2!C66 -> 0 | L76: =IF($E$3="0",Лист2!B66^$L$11,1) -> 1 | M76: =Лист2!$B66^M$11 -> 0 | N76: =Лист2!$B66^N$11 -> 0 | O76: =Лист2!$B66^O$11 -> 0 | P76: =Лист2!$B66^P$11 -> 0 | Q76: =Лист2!$B66^Q$11 -> 0
D77: =IF(ISNUMBER(Лист2!C67),MMULT(OFFSET(L77,0,0,1,$J$3),OFFSET($N$3,0,0,$J$3,1)),"") ->  | E77: =MMULT(MMULT(OFFSET(L77,0,0,1,$J$3),икст_1),TRANSPOSE(OFFSET(L77,0,0,1,$J$3))) -> 0.2074592075 | G77: =IF(ISNUMBER(Лист2!C67),D77-$D$10*$E$10*SQRT(E77),"") ->  | H77: =IF(ISNUMBER(Лист2!C67),D77+$D$10*$E$10*SQRT(E77),"") ->  | I77: =IF(ISNUMBER(Лист2!C67),D77-$D$10*$E$10*SQRT(1+E77),"") ->  | J77: =IF(ISNUMBER(Лист2!C67),D77+$D$10*$E$10*SQRT(1+E77),"") ->  | K77: =Лист2!C67 -> 0 | L77: =IF($E$3="0",Лист2!B67^$L$11,1) -> 1 | M77: =Лист2!$B67^M$11 -> 0 | N77: =Лист2!$B67^N$11 -> 0 | O77: =Лист2!$B67^O$11 -> 0 | P77: =Лист2!$B67^P$11 -> 0 | Q77: =Лист2!$B67^Q$11 -> 0
D78: =IF(ISNUMBER(Лист2!C68),MMULT(OFFSET(L78,0,0,1,$J$3),OFFSET($N$3,0,0,$J$3,1)),"") ->  | E78: =MMULT(MMULT(OFFSET(L78,0,0,1,$J$3),икст_1),TRANSPOSE(OFFSET(L78,0,0,1,$J$3))) -> 0.2074592075 | G78: =IF(ISNUMBER(Лист2!C68),D78-$D$10*$E$10*SQRT(E78),"") ->  | H78: =IF(ISNUMBER(Лист2!C68),D78+$D$10*$E$10*SQRT(E78),"") ->  | I78: =IF(ISNUMBER(Лист2!C68),D78-$D$10*$E$10*SQRT(1+E78),"") ->  | J78: =IF(ISNUMBER(Лист2!C68),D78+$D$10*$E$10*SQRT(1+E78),"") ->  | K78: =Лист2!C68 -> 0 | L78: =IF($E$3="0",Лист2!B68^$L$11,1) -> 1 | M78: =Лист2!$B68^M$11 -> 0 | N78: =Лист2!$B68^N$11 -> 0 | O78: =Лист2!$B68^O$11 -> 0 | P78: =Лист2!$B68^P$11 -> 0 | Q78: =Лист2!$B68^Q$11 -> 0
D79: =IF(ISNUMBER(Лист2!C69),MMULT(OFFSET(L79,0,0,1,$J$3),OFFSET($N$3,0,0,$J$3,1)),"") ->  | E79: =MMULT(MMULT(OFFSET(L79,0,0,1,$J$3),икст_1),TRANSPOSE(OFFSET(L79,0,0,1,$J$3))) -> 0.2074592075 | G79: =IF(ISNUMBER(Лист2!C69),D79-$D$10*$E$10*SQRT(E79),"") ->  | H79: =IF(ISNUMBER(Лист2!C69),D79+$D$10*$E$10*SQRT(E79),"") ->  | I79: =IF(ISNUMBER(Лист2!C69),D79-$D$10*$E$10*SQRT(1+E79),"") ->  | J79: =IF(ISNUMBER(Лист2!C69),D79+$D$10*$E$10*SQRT(1+E79),"") ->  | K79: =Лист2!C69 -> 0 | L79: =IF($E$3="0",Лист2!B69^$L$11,1) -> 1 | M79: =Лист2!$B69^M$11 -> 0 | N79: =Лист2!$B69^N$11 -> 0 | O79: =Лист2!$B69^O$11 -> 0 | P79: =Лист2!$B69^P$11 -> 0 | Q79: =Лист2!$B69^Q$11 -> 0
D80: =IF(ISNUMBER(Лист2!C70),MMULT(OFFSET(L80,0,0,1,$J$3),OFFSET($N$3,0,0,$J$3,1)),"") ->  | E80: =MMULT(MMULT(OFFSET(L80,0,0,1,$J$3),икст_1),TRANSPOSE(OFFSET(L80,0,0,1,$J$3))) -> 0.2074592075 | G80: =IF(ISNUMBER(Лист2!C70),D80-$D$10*$E$10*SQRT(E80),"") ->  | H80: =IF(ISNUMBER(Лист2!C70),D80+$D$10*$E$10*SQRT(E80),"") ->  | I80: =IF(ISNUMBER(Лист2!C70),D80-$D$10*$E$10*SQRT(1+E80),"") ->  | J80: =IF(ISNUMBER(Лист2!C70),D80+$D$10*$E$10*SQRT(1+E80),"") ->  | K80: =Лист2!C70 -> 0 | L80: =IF($E$3="0",Лист2!B70^$L$11,1) -> 1 | M80: =Лист2!$B70^M$11 -> 0 | N80: =Лист2!$B70^N$11 -> 0 | O80: =Лист2!$B70^O$11 -> 0 | P80: =Лист2!$B70^P$11 -> 0 | Q80: =Лист2!$B70^Q$11 -> 0
D81: =IF(ISNUMBER(Лист2!C71),MMULT(OFFSET(L81,0,0,1,$J$3),OFFSET($N$3,0,0,$J$3,1)),"") ->  | E81: =MMULT(MMULT(OFFSET(L81,0,0,1,$J$3),икст_1),TRANSPOSE(OFFSET(L81,0,0,1,$J$3))) -> 0.2074592075 | G81: =IF(ISNUMBER(Лист2!C71),D81-$D$10*$E$10*SQRT(E81),"") ->  | H81: =IF(ISNUMBER(Лист2!C71),D81+$D$10*$E$10*SQRT(E81),"") ->  | I81: =IF(ISNUMBER(Лист2!C71),D81-$D$10*$E$10*SQRT(1+E81),"") ->  | J81: =IF(ISNUMBER(Лист2!C71),D81+$D$10*$E$10*SQRT(1+E81),"") ->  | K81: =Лист2!C71 -> 0 | L81: =IF($E$3="0",Лист2!B71^$L$11,1) -> 1 | M81: =Лист2!$B71^M$11 -> 0 | N81: =Лист2!$B71^N$11 -> 0 | O81: =Лист2!$B71^O$11 -> 0 | P81: =Лист2!$B71^P$11 -> 0 | Q81: =Лист2!$B71^Q$11 -> 0
D82: =IF(ISNUMBER(Лист2!C72),MMULT(OFFSET(L82,0,0,1,$J$3),OFFSET($N$3,0,0,$J$3,1)),"") ->  | E82: =MMULT(MMULT(OFFSET(L82,0,0,1,$J$3),икст_1),TRANSPOSE(OFFSET(L82,0,0,1,$J$3))) -> 0.2074592075 | G82: =IF(ISNUMBER(Лист2!C72),D82-$D$10*$E$10*SQRT(E82),"") ->  | H82: =IF(ISNUMBER(Лист2!C72),D82+$D$10*$E$10*SQRT(E82),"") ->  | I82: =IF(ISNUMBER(Лист2!C72),D82-$D$10*$E$10*SQRT(1+E82),"") ->  | J82: =IF(ISNUMBER(Лист2!C72),D82+$D$10*$E$10*SQRT(1+E82),"") ->  | K82: =Лист2!C72 -> 0 | L82: =IF($E$3="0",Лист2!B72^$L$11,1) -> 1 | M82: =Лист2!$B72^M$11 -> 0 | N82: =Лист2!$B72^N$11 -> 0 | O82: =Лист2!$B72^O$11 -> 0 | P82: =Лист2!$B72^P$11 -> 0 | Q82: =Лист2!$B72^Q$11 -> 0
D83: =IF(ISNUMBER(Лист2!C73),MMULT(OFFSET(L83,0,0,1,$J$3),OFFSET($N$3,0,0,$J$3,1)),"") ->  | E83: =MMULT(MMULT(OFFSET(L83,0,0,1,$J$3),икст_1),TRANSPOSE(OFFSET(L83,0,0,1,$J$3))) -> 0.2074592075 | G83: =IF(ISNUMBER(Лист2!C73),D83-$D$10*$E$10*SQRT(E83),"") ->  | H83: =IF(ISNUMBER(Лист2!C73),D83+$D$10*$E$10*SQRT(E83),"") ->  | I83: =IF(ISNUMBER(Лист2!C73),D83-$D$10*$E$10*SQRT(1+E83),"") ->  | J83: =IF(ISNUMBER(Лист2!C73),D83+$D$10*$E$10*SQRT(1+E83),"") ->  | K83: =Лист2!C73 -> 0 | L83: =IF($E$3="0",Лист2!B73^$L$11,1) -> 1 | M83: =Лист2!$B73^M$11 -> 0 | N83: =Лист2!$B73^N$11 -> 0 | O83: =Лист2!$B73^O$11 -> 0 | P83: =Лист2!$B73^P$11 -> 0 | Q83: =Лист2!$B73^Q$11 -> 0
D84: =IF(ISNUMBER(Лист2!C74),MMULT(OFFSET(L84,0,0,1,$J$3),OFFSET($N$3,0,0,$J$3,1)),"") ->  | E84: =MMULT(MMULT(OFFSET(L84,0,0,1,$J$3),икст_1),TRANSPOSE(OFFSET(L84,0,0,1,$J$3))) -> 0.2074592075 | G84: =IF(ISNUMBER(Лист2!C74),D84-$D$10*$E$10*SQRT(E84),"") ->  | H84: =IF(ISNUMBER(Лист2!C74),D84+$D$10*$E$10*SQRT(E84),"") ->  | I84: =IF(ISNUMBER(Лист2!C74),D84-$D$10*$E$10*SQRT(1+E84),"") ->  | J84: =IF(ISNUMBER(Лист2!C74),D84+$D$10*$E$10*SQRT(1+E84),"") ->  | K84: =Лист2!C74 -> 0 | L84: =IF($E$3="0",Лист2!B74^$L$11,1) -> 1 | M84: =Лист2!$B74^M$11 -> 0 | N84: =Лист2!$B74^N$11 -> 0 | O84: =Лист2!$B74^O$11 -> 0 | P84: =Лист2!$B74^P$11 -> 0 | Q84: =Лист2!$B74^Q$11 -> 0
D85: =IF(ISNUMBER(Лист2!C75),MMULT(OFFSET(L85,0,0,1,$J$3),OFFSET($N$3,0,0,$J$3,1)),"") ->  | E85: =MMULT(MMULT(OFFSET(L85,0,0,1,$J$3),икст_1),TRANSPOSE(OFFSET(L85,0,0,1,$J$3))) -> 0.2074592075 | G85: =IF(ISNUMBER(Лист2!C75),D85-$D$10*$E$10*SQRT(E85),"") ->  | H85: =IF(ISNUMBER(Лист2!C75),D85+$D$10*$E$10*SQRT(E85),"") ->  | I85: =IF(ISNUMBER(Лист2!C75),D85-$D$10*$E$10*SQRT(1+E85),"") ->  | J85: =IF(ISNUMBER(Лист2!C75),D85+$D$10*$E$10*SQRT(1+E85),"") ->  | K85: =Лист2!C75 -> 0 | L85: =IF($E$3="0",Лист2!B75^$L$11,1) -> 1 | M85: =Лист2!$B75^M$11 -> 0 | N85: =Лист2!$B75^N$11 -> 0 | O85: =Лист2!$B75^O$11 -> 0 | P85: =Лист2!$B75^P$11 -> 0 | Q85: =Лист2!$B75^Q$11 -> 0
D86: =IF(ISNUMBER(Лист2!C76),MMULT(OFFSET(L86,0,0,1,$J$3),OFFSET($N$3,0,0,$J$3,1)),"") ->  | E86: =MMULT(MMULT(OFFSET(L86,0,0,1,$J$3),икст_1),TRANSPOSE(OFFSET(L86,0,0,1,$J$3))) -> 0.2074592075 | G86: =IF(ISNUMBER(Лист2!C76),D86-$D$10*$E$10*SQRT(E86),"") ->  | H86: =IF(ISNUMBER(Лист2!C76),D86+$D$10*$E$10*SQRT(E86),"") ->  | I86: =IF(ISNUMBER(Лист2!C76),D86-$D$10*$E$10*SQRT(1+E86),"") ->  | J86: =IF(ISNUMBER(Лист2!C76),D86+$D$10*$E$10*SQRT(1+E86),"") ->  | K86: =Лист2!C76 -> 0 | L86: =IF($E$3="0",Лист2!B76^$L$11,1) -> 1 | M86: =Лист2!$B76^M$11 -> 0 | N86: =Лист2!$B76^N$11 -> 0 | O86: =Лист2!$B76^O$11 -> 0 | P86: =Лист2!$B76^P$11 -> 0 | Q86: =Лист2!$B76^Q$11 -> 0
D87: =IF(ISNUMBER(Лист2!C77),MMULT(OFFSET(L87,0,0,1,$J$3),OFFSET($N$3,0,0,$J$3,1)),"") ->  | E87: =MMULT(MMULT(OFFSET(L87,0,0,1,$J$3),икст_1),TRANSPOSE(OFFSET(L87,0,0,1,$J$3))) -> 0.2074592075 | G87: =IF(ISNUMBER(Лист2!C77),D87-$D$10*$E$10*SQRT(E87),"") ->  | H87: =IF(ISNUMBER(Лист2!C77),D87+$D$10*$E$10*SQRT(E87),"") ->  | I87: =IF(ISNUMBER(Лист2!C77),D87-$D$10*$E$10*SQRT(1+E87),"") ->  | J87: =IF(ISNUMBER(Лист2!C77),D87+$D$10*$E$10*SQRT(1+E87),"") ->  | K87: =Лист2!C77 -> 0 | L87: =IF($E$3="0",Лист2!B77^$L$11,1) -> 1 | M87: =Лист2!$B77^M$11 -> 0 | N87: =Лист2!$B77^N$11 -> 0 | O87: =Лист2!$B77^O$11 -> 0 | P87: =Лист2!$B77^P$11 -> 0 | Q87: =Лист2!$B77^Q$11 -> 0
D88: =IF(ISNUMBER(Лист2!C78),MMULT(OFFSET(L88,0,0,1,$J$3),OFFSET($N$3,0,0,$J$3,1)),"") ->  | E88: =MMULT(MMULT(OFFSET(L88,0,0,1,$J$3),икст_1),TRANSPOSE(OFFSET(L88,0,0,1,$J$3))) -> 0.2074592075 | G88: =IF(ISNUMBER(Лист2!C78),D88-$D$10*$E$10*SQRT(E88),"") ->  | H88: =IF(ISNUMBER(Лист2!C78),D88+$D$10*$E$10*SQRT(E88),"") ->  | I88: =IF(ISNUMBER(Лист2!C78),D88-$D$10*$E$10*SQRT(1+E88),"") ->  | J88: =IF(ISNUMBER(Лист2!C78),D88+$D$10*$E$10*SQRT(1+E88),"") ->  | K88: =Лист2!C78 -> 0 | L88: =IF($E$3="0",Лист2!B78^$L$11,1) -> 1 | M88: =Лист2!$B78^M$11 -> 0 | N88: =Лист2!$B78^N$11 -> 0 | O88: =Лист2!$B78^O$11 -> 0 | P88: =Лист2!$B78^P$11 -> 0 | Q88: =Лист2!$B78^Q$11 -> 0
D89: =IF(ISNUMBER(Лист2!C79),MMULT(OFFSET(L89,0,0,1,$J$3),OFFSET($N$3,0,0,$J$3,1)),"") ->  | E89: =MMULT(MMULT(OFFSET(L89,0,0,1,$J$3),икст_1),TRANSPOSE(OFFSET(L89,0,0,1,$J$3))) -> 0.2074592075 | G89: =IF(ISNUMBER(Лист2!C79),D89-$D$10*$E$10*SQRT(E89),"") ->  | H89: =IF(ISNUMBER(Лист2!C79),D89+$D$10*$E$10*SQRT(E89),"") ->  | I89: =IF(ISNUMBER(Лист2!C79),D89-$D$10*$E$10*SQRT(1+E89),"") ->  | J89: =IF(ISNUMBER(Лист2!C79),D89+$D$10*$E$10*SQRT(1+E89),"") ->  | K89: =Лист2!C79 -> 0 | L89: =IF($E$3="0",Лист2!B79^$L$11,1) -> 1 | M89: =Лист2!$B79^M$11 -> 0 | N89: =Лист2!$B79^N$11 -> 0 | O89: =Лист2!$B79^O$11 -> 0 | P89: =Лист2!$B79^P$11 -> 0 | Q89: =Лист2!$B79^Q$11 -> 0
D90: =IF(ISNUMBER(Лист2!C80),MMULT(OFFSET(L90,0,0,1,$J$3),OFFSET($N$3,0,0,$J$3,1)),"") ->  | E90: =MMULT(MMULT(OFFSET(L90,0,0,1,$J$3),икст_1),TRANSPOSE(OFFSET(L90,0,0,1,$J$3))) -> 0.2074592075 | G90: =IF(ISNUMBER(Лист2!C80),D90-$D$10*$E$10*SQRT(E90),"") ->  | H90: =IF(ISNUMBER(Лист2!C80),D90+$D$10*$E$10*SQRT(E90),"") ->  | I90: =IF(ISNUMBER(Лист2!C80),D90-$D$10*$E$10*SQRT(1+E90),"") ->  | J90: =IF(ISNUMBER(Лист2!C80),D90+$D$10*$E$10*SQRT(1+E90),"") ->  | K90: =Лист2!C80 -> 0 | L90: =IF($E$3="0",Лист2!B80^$L$11,1) -> 1 | M90: =Лист2!$B80^M$11 -> 0 | N90: =Лист2!$B80^N$11 -> 0 | O90: =Лист2!$B80^O$11 -> 0 | P90: =Лист2!$B80^P$11 -> 0 | Q90: =Лист2!$B80^Q$11 -> 0
D91: =IF(ISNUMBER(Лист2!C81),MMULT(OFFSET(L91,0,0,1,$J$3),OFFSET($N$3,0,0,$J$3,1)),"") ->  | E91: =MMULT(MMULT(OFFSET(L91,0,0,1,$J$3),икст_1),TRANSPOSE(OFFSET(L91,0,0,1,$J$3))) -> 0.2074592075 | G91: =IF(ISNUMBER(Лист2!C81),D91-$D$10*$E$10*SQRT(E91),"") ->  | H91: =IF(ISNUMBER(Лист2!C81),D91+$D$10*$E$10*SQRT(E91),"") ->  | I91: =IF(ISNUMBER(Лист2!C81),D91-$D$10*$E$10*SQRT(1+E91),"") ->  | J91: =IF(ISNUMBER(Лист2!C81),D91+$D$10*$E$10*SQRT(1+E91),"") ->  | K91: =Лист2!C81 -> 0 | L91: =IF($E$3="0",Лист2!B81^$L$11,1) -> 1 | M91: =Лист2!$B81^M$11 -> 0 | N91: =Лист2!$B81^N$11 -> 0 | O91: =Лист2!$B81^O$11 -> 0 | P91: =Лист2!$B81^P$11 -> 0 | Q91: =Лист2!$B81^Q$11 -> 0
D92: =IF(ISNUMBER(Лист2!C82),MMULT(OFFSET(L92,0,0,1,$J$3),OFFSET($N$3,0,0,$J$3,1)),"") ->  | E92: =MMULT(MMULT(OFFSET(L92,0,0,1,$J$3),икст_1),TRANSPOSE(OFFSET(L92,0,0,1,$J$3))) -> 0.2074592075 | G92: =IF(ISNUMBER(Лист2!C82),D92-$D$10*$E$10*SQRT(E92),"") ->  | H92: =IF(ISNUMBER(Лист2!C82),D92+$D$10*$E$10*SQRT(E92),"") ->  | I92: =IF(ISNUMBER(Лист2!C82),D92-$D$10*$E$10*SQRT(1+E92),"") ->  | J92: =IF(ISNUMBER(Лист2!C82),D92+$D$10*$E$10*SQRT(1+E92),"") ->  | K92: =Лист2!C82 -> 0 | L92: =IF($E$3="0",Лист2!B82^$L$11,1) -> 1 | M92: =Лист2!$B82^M$11 -> 0 | N92: =Лист2!$B82^N$11 -> 0 | O92: =Лист2!$B82^O$11 -> 0 | P92: =Лист2!$B82^P$11 -> 0 | Q92: =Лист2!$B82^Q$11 -> 0
D93: =IF(ISNUMBER(Лист2!C83),MMULT(OFFSET(L93,0,0,1,$J$3),OFFSET($N$3,0,0,$J$3,1)),"") ->  | E93: =MMULT(MMULT(OFFSET(L93,0,0,1,$J$3),икст_1),TRANSPOSE(OFFSET(L93,0,0,1,$J$3))) -> 0.2074592075 | G93: =IF(ISNUMBER(Лист2!C83),D93-$D$10*$E$10*SQRT(E93),"") ->  | H93: =IF(ISNUMBER(Лист2!C83),D93+$D$10*$E$10*SQRT(E93),"") ->  | I93: =IF(ISNUMBER(Лист2!C83),D93-$D$10*$E$10*SQRT(1+E93),"") ->  | J93: =IF(ISNUMBER(Лист2!C83),D93+$D$10*$E$10*SQRT(1+E93),"") ->  | K93: =Лист2!C83 -> 0 | L93: =IF($E$3="0",Лист2!B83^$L$11,1) -> 1 | M93: =Лист2!$B83^M$11 -> 0 | N93: =Лист2!$B83^N$11 -> 0 | O93: =Лист2!$B83^O$11 -> 0 | P93: =Лист2!$B83^P$11 -> 0 | Q93: =Лист2!$B83^Q$11 -> 0
D94: =IF(ISNUMBER(Лист2!C84),MMULT(OFFSET(L94,0,0,1,$J$3),OFFSET($N$3,0,0,$J$3,1)),"") ->  | E94: =MMULT(MMULT(OFFSET(L94,0,0,1,$J$3),икст_1),TRANSPOSE(OFFSET(L94,0,0,1,$J$3))) -> 0.2074592075 | G94: =IF(ISNUMBER(Лист2!C84),D94-$D$10*$E$10*SQRT(E94),"") ->  | H94: =IF(ISNUMBER(Лист2!C84),D94+$D$10*$E$10*SQRT(E94),"") ->  | I94: =IF(ISNUMBER(Лист2!C84),D94-$D$10*$E$10*SQRT(1+E94),"") ->  | J94: =IF(ISNUMBER(Лист2!C84),D94+$D$10*$E$10*SQRT(1+E94),"") ->  | K94: =Лист2!C84 -> 0 | L94: =IF($E$3="0",Лист2!B84^$L$11,1) -> 1 | M94: =Лист2!$B84^M$11 -> 0 | N94: =Лист2!$B84^N$11 -> 0 | O94: =Лист2!$B84^O$11 -> 0 | P94: =Лист2!$B84^P$11 -> 0 | Q94: =Лист2!$B84^Q$11 -> 0
D95: =IF(ISNUMBER(Лист2!C85),MMULT(OFFSET(L95,0,0,1,$J$3),OFFSET($N$3,0,0,$J$3,1)),"") ->  | E95: =MMULT(MMULT(OFFSET(L95,0,0,1,$J$3),икст_1),TRANSPOSE(OFFSET(L95,0,0,1,$J$3))) -> 0.2074592075 | G95: =IF(ISNUMBER(Лист2!C85),D95-$D$10*$E$10*SQRT(E95),"") ->  | H95: =IF(ISNUMBER(Лист2!C85),D95+$D$10*$E$10*SQRT(E95),"") ->  | I95: =IF(ISNUMBER(Лист2!C85),D95-$D$10*$E$10*SQRT(1+E95),"") ->  | J95: =IF(ISNUMBER(Лист2!C85),D95+$D$10*$E$10*SQRT(1+E95),"") ->  | K95: =Лист2!C85 -> 0 | L95: =IF($E$3="0",Лист2!B85^$L$11,1) -> 1 | M95: =Лист2!$B85^M$11 -> 0 | N95: =Лист2!$B85^N$11 -> 0 | O95: =Лист2!$B85^O$11 -> 0 | P95: =Лист2!$B85^P$11 -> 0 | Q95: =Лист2!$B85^Q$11 -> 0
D96: =IF(ISNUMBER(Лист2!C86),MMULT(OFFSET(L96,0,0,1,$J$3),OFFSET($N$3,0,0,$J$3,1)),"") ->  | E96: =MMULT(MMULT(OFFSET(L96,0,0,1,$J$3),икст_1),TRANSPOSE(OFFSET(L96,0,0,1,$J$3))) -> 0.2074592075 | G96: =IF(ISNUMBER(Лист2!C86),D96-$D$10*$E$10*SQRT(E96),"") ->  | H96: =IF(ISNUMBER(Лист2!C86),D96+$D$10*$E$10*SQRT(E96),"") ->  | I96: =IF(ISNUMBER(Лист2!C86),D96-$D$10*$E$10*SQRT(1+E96),"") ->  | J96: =IF(ISNUMBER(Лист2!C86),D96+$D$10*$E$10*SQRT(1+E96),"") ->  | K96: =Лист2!C86 -> 0 | L96: =IF($E$3="0",Лист2!B86^$L$11,1) -> 1 | M96: =Лист2!$B86^M$11 -> 0 | N96: =Лист2!$B86^N$11 -> 0 | O96: =Лист2!$B86^O$11 -> 0 | P96: =Лист2!$B86^P$11 -> 0 | Q96: =Лист2!$B86^Q$11 -> 0
D97: =IF(ISNUMBER(Лист2!C87),MMULT(OFFSET(L97,0,0,1,$J$3),OFFSET($N$3,0,0,$J$3,1)),"") ->  | E97: =MMULT(MMULT(OFFSET(L97,0,0,1,$J$3),икст_1),TRANSPOSE(OFFSET(L97,0,0,1,$J$3))) -> 0.2074592075 | G97: =IF(ISNUMBER(Лист2!C87),D97-$D$10*$E$10*SQRT(E97),"") ->  | H97: =IF(ISNUMBER(Лист2!C87),D97+$D$10*$E$10*SQRT(E97),"") ->  | I97: =IF(ISNUMBER(Лист2!C87),D97-$D$10*$E$10*SQRT(1+E97),"") ->  | J97: =IF(ISNUMBER(Лист2!C87),D97+$D$10*$E$10*SQRT(1+E97),"") ->  | K97: =Лист2!C87 -> 0 | L97: =IF($E$3="0",Лист2!B87^$L$11,1) -> 1 | M97: =Лист2!$B87^M$11 -> 0 | N97: =Лист2!$B87^N$11 -> 0 | O97: =Лист2!$B87^O$11 -> 0 | P97: =Лист2!$B87^P$11 -> 0 | Q97: =Лист2!$B87^Q$11 -> 0
D98: =IF(ISNUMBER(Лист2!C88),MMULT(OFFSET(L98,0,0,1,$J$3),OFFSET($N$3,0,0,$J$3,1)),"") ->  | E98: =MMULT(MMULT(OFFSET(L98,0,0,1,$J$3),икст_1),TRANSPOSE(OFFSET(L98,0,0,1,$J$3))) -> 0.2074592075 | G98: =IF(ISNUMBER(Лист2!C88),D98-$D$10*$E$10*SQRT(E98),"") ->  | H98: =IF(ISNUMBER(Лист2!C88),D98+$D$10*$E$10*SQRT(E98),"") ->  | I98: =IF(ISNUMBER(Лист2!C88),D98-$D$10*$E$10*SQRT(1+E98),"") ->  | J98: =IF(ISNUMBER(Лист2!C88),D98+$D$10*$E$10*SQRT(1+E98),"") ->  | K98: =Лист2!C88 -> 0 | L98: =IF($E$3="0",Лист2!B88^$L$11,1) -> 1 | M98: =Лист2!$B88^M$11 -> 0 | N98: =Лист2!$B88^N$11 -> 0 | O98: =Лист2!$B88^O$11 -> 0 | P98: =Лист2!$B88^P$11 -> 0 | Q98: =Лист2!$B88^Q$11 -> 0
D99: =IF(ISNUMBER(Лист2!C89),MMULT(OFFSET(L99,0,0,1,$J$3),OFFSET($N$3,0,0,$J$3,1)),"") ->  | E99: =MMULT(MMULT(OFFSET(L99,0,0,1,$J$3),икст_1),TRANSPOSE(OFFSET(L99,0,0,1,$J$3))) -> 0.2074592075 | G99: =IF(ISNUMBER(Лист2!C89),D99-$D$10*$E$10*SQRT(E99),"") ->  | H99: =IF(ISNUMBER(Лист2!C89),D99+$D$10*$E$10*SQRT(E99),"") ->  | I99: =IF(ISNUMBER(Лист2!C89),D99-$D$10*$E$10*SQRT(1+E99),"") ->  | J99: =IF(ISNUMBER(Лист2!C89),D99+$D$10*$E$10*SQRT(1+E99),"") ->  | K99: =Лист2!C89 -> 0 | L99: =IF($E$3="0",Лист2!B89^$L$11,1) -> 1 | M99: =Лист2!$B89^M$11 -> 0 | N99: =Лист2!$B89^N$11 -> 0 | O99: =Лист2!$B89^O$11 -> 0 | P99: =Лист2!$B89^P$11 -> 0 | Q99: =Лист2!$B89^Q$11 -> 0
D100: =IF(ISNUMBER(Лист2!C90),MMULT(OFFSET(L100,0,0,1,$J$3),OFFSET($N$3,0,0,$J$3,1)),"") ->  | E100: =MMULT(MMULT(OFFSET(L100,0,0,1,$J$3),икст_1),TRANSPOSE(OFFSET(L100,0,0,1,$J$3))) -> 0.2074592075 | G100: =IF(ISNUMBER(Лист2!C90),D100-$D$10*$E$10*SQRT(E100),"") ->  | H100: =IF(ISNUMBER(Лист2!C90),D100+$D$10*$E$10*SQRT(E100),"") ->  | I100: =IF(ISNUMBER(Лист2!C90),D100-$D$10*$E$10*SQRT(1+E100),"") ->  | J100: =IF(ISNUMBER(Лист2!C90),D100+$D$10*$E$10*SQRT(1+E100),"") ->  | K100: =Лист2!C90 -> 0 | L100: =IF($E$3="0",Лист2!B90^$L$11,1) -> 1 | M100: =Лист2!$B90^M$11 -> 0 | N100: =Лист2!$B90^N$11 -> 0 | O100: =Лист2!$B90^O$11 -> 0 | P100: =Лист2!$B90^P$11 -> 0 | Q100: =Лист2!$B90^Q$11 -> 0
D101: =IF(ISNUMBER(Лист2!C91),MMULT(OFFSET(L101,0,0,1,$J$3),OFFSET($N$3,0,0,$J$3,1)),"") ->  | E101: =MMULT(MMULT(OFFSET(L101,0,0,1,$J$3),икст_1),TRANSPOSE(OFFSET(L101,0,0,1,$J$3))) -> 0.2074592075 | G101: =IF(ISNUMBER(Лист2!C91),D101-$D$10*$E$10*SQRT(E101),"") ->  | H101: =IF(ISNUMBER(Лист2!C91),D101+$D$10*$E$10*SQRT(E101),"") ->  | I101: =IF(ISNUMBER(Лист2!C91),D101-$D$10*$E$10*SQRT(1+E101),"") ->  | J101: =IF(ISNUMBER(Лист2!C91),D101+$D$10*$E$10*SQRT(1+E101),"") ->  | K101: =Лист2!C91 -> 0 | L101: =IF($E$3="0",Лист2!B91^$L$11,1) -> 1 | M101: =Лист2!$B91^M$11 -> 0 | N101: =Лист2!$B91^N$11 -> 0 | O101: =Лист2!$B91^O$11 -> 0 | P101: =Лист2!$B91^P$11 -> 0 | Q101: =Лист2!$B91^Q$11 -> 0
D102: =IF(ISNUMBER(Лист2!C92),MMULT(OFFSET(L102,0,0,1,$J$3),OFFSET($N$3,0,0,$J$3,1)),"") ->  | E102: =MMULT(MMULT(OFFSET(L102,0,0,1,$J$3),икст_1),TRANSPOSE(OFFSET(L102,0,0,1,$J$3))) -> 0.2074592075 | G102: =IF(ISNUMBER(Лист2!C92),D102-$D$10*$E$10*SQRT(E102),"") ->  | H102: =IF(ISNUMBER(Лист2!C92),D102+$D$10*$E$10*SQRT(E102),"") ->  | I102: =IF(ISNUMBER(Лист2!C92),D102-$D$10*$E$10*SQRT(1+E102),"") ->  | J102: =IF(ISNUMBER(Лист2!C92),D102+$D$10*$E$10*SQRT(1+E102),"") ->  | K102: =Лист2!C92 -> 0 | L102: =IF($E$3="0",Лист2!B92^$L$11,1) -> 1 | M102: =Лист2!$B92^M$11 -> 0 | N102: =Лист2!$B92^N$11 -> 0 | O102: =Лист2!$B92^O$11 -> 0 | P102: =Лист2!$B92^P$11 -> 0 | Q102: =Лист2!$B92^Q$11 -> 0
D103: =IF(ISNUMBER(Лист2!C93),MMULT(OFFSET(L103,0,0,1,$J$3),OFFSET($N$3,0,0,$J$3,1)),"") ->  | E103: =MMULT(MMULT(OFFSET(L103,0,0,1,$J$3),икст_1),TRANSPOSE(OFFSET(L103,0,0,1,$J$3))) -> 0.2074592075 | G103: =IF(ISNUMBER(Лист2!C93),D103-$D$10*$E$10*SQRT(E103),"") ->  | H103: =IF(ISNUMBER(Лист2!C93),D103+$D$10*$E$10*SQRT(E103),"") ->  | I103: =IF(ISNUMBER(Лист2!C93),D103-$D$10*$E$10*SQRT(1+E103),"") ->  | J103: =IF(ISNUMBER(Лист2!C93),D103+$D$10*$E$10*SQRT(1+E103),"") ->  | K103: =Лист2!C93 -> 0 | L103: =IF($E$3="0",Лист2!B93^$L$11,1) -> 1 | M103: =Лист2!$B93^M$11 -> 0 | N103: =Лист2!$B93^N$11 -> 0 | O103: =Лист2!$B93^O$11 -> 0 | P103: =Лист2!$B93^P$11 -> 0 | Q103: =Лист2!$B93^Q$11 -> 0
D104: =IF(ISNUMBER(Лист2!C94),MMULT(OFFSET(L104,0,0,1,$J$3),OFFSET($N$3,0,0,$J$3,1)),"") ->  | E104: =MMULT(MMULT(OFFSET(L104,0,0,1,$J$3),икст_1),TRANSPOSE(OFFSET(L104,0,0,1,$J$3))) -> 0.2074592075 | G104: =IF(ISNUMBER(Лист2!C94),D104-$D$10*$E$10*SQRT(E104),"") ->  | H104: =IF(ISNUMBER(Лист2!C94),D104+$D$10*$E$10*SQRT(E104),"") ->  | I104: =IF(ISNUMBER(Лист2!C94),D104-$D$10*$E$10*SQRT(1+E104),"") ->  | J104: =IF(ISNUMBER(Лист2!C94),D104+$D$10*$E$10*SQRT(1+E104),"") ->  | K104: =Лист2!C94 -> 0 | L104: =IF($E$3="0",Лист2!B94^$L$11,1) -> 1 | M104: =Лист2!$B94^M$11 -> 0 | N104: =Лист2!$B94^N$11 -> 0 | O104: =Лист2!$B94^O$11 -> 0 | P104: =Лист2!$B94^P$11 -> 0 | Q104: =Лист2!$B94^Q$11 -> 0
D105: =IF(ISNUMBER(Лист2!C95),MMULT(OFFSET(L105,0,0,1,$J$3),OFFSET($N$3,0,0,$J$3,1)),"") ->  | E105: =MMULT(MMULT(OFFSET(L105,0,0,1,$J$3),икст_1),TRANSPOSE(OFFSET(L105,0,0,1,$J$3))) -> 0.2074592075 | G105: =IF(ISNUMBER(Лист2!C95),D105-$D$10*$E$10*SQRT(E105),"") ->  | H105: =IF(ISNUMBER(Лист2!C95),D105+$D$10*$E$10*SQRT(E105),"") ->  | I105: =IF(ISNUMBER(Лист2!C95),D105-$D$10*$E$10*SQRT(1+E105),"") ->  | J105: =IF(ISNUMBER(Лист2!C95),D105+$D$10*$E$10*SQRT(1+E105),"") ->  | K105: =Лист2!C95 -> 0 | L105: =IF($E$3="0",Лист2!B95^$L$11,1) -> 1 | M105: =Лист2!$B95^M$11 -> 0 | N105: =Лист2!$B95^N$11 -> 0 | O105: =Лист2!$B95^O$11 -> 0 | P105: =Лист2!$B95^P$11 -> 0 | Q105: =Лист2!$B95^Q$11 -> 0
D106: =IF(ISNUMBER(Лист2!C96),MMULT(OFFSET(L106,0,0,1,$J$3),OFFSET($N$3,0,0,$J$3,1)),"") ->  | E106: =MMULT(MMULT(OFFSET(L106,0,0,1,$J$3),икст_1),TRANSPOSE(OFFSET(L106,0,0,1,$J$3))) -> 0.2074592075 | G106: =IF(ISNUMBER(Лист2!C96),D106-$D$10*$E$10*SQRT(E106),"") ->  | H106: =IF(ISNUMBER(Лист2!C96),D106+$D$10*$E$10*SQRT(E106),"") ->  | I106: =IF(ISNUMBER(Лист2!C96),D106-$D$10*$E$10*SQRT(1+E106),"") ->  | J106: =IF(ISNUMBER(Лист2!C96),D106+$D$10*$E$10*SQRT(1+E106),"") ->  | K106: =Лист2!C96 -> 0 | L106: =IF($E$3="0",Лист2!B96^$L$11,1) -> 1 | M106: =Лист2!$B96^M$11 -> 0 | N106: =Лист2!$B96^N$11 -> 0 | O106: =Лист2!$B96^O$11 -> 0 | P106: =Лист2!$B96^P$11 -> 0 | Q106: =Лист2!$B96^Q$11 -> 0
D107: =IF(ISNUMBER(Лист2!C97),MMULT(OFFSET(L107,0,0,1,$J$3),OFFSET($N$3,0,0,$J$3,1)),"") ->  | E107: =MMULT(MMULT(OFFSET(L107,0,0,1,$J$3),икст_1),TRANSPOSE(OFFSET(L107,0,0,1,$J$3))) -> 0.2074592075 | G107: =IF(ISNUMBER(Лист2!C97),D107-$D$10*$E$10*SQRT(E107),"") ->  | H107: =IF(ISNUMBER(Лист2!C97),D107+$D$10*$E$10*SQRT(E107),"") ->  | I107: =IF(ISNUMBER(Лист2!C97),D107-$D$10*$E$10*SQRT(1+E107),"") ->  | J107: =IF(ISNUMBER(Лист2!C97),D107+$D$10*$E$10*SQRT(1+E107),"") ->  | K107: =Лист2!C97 -> 0 | L107: =IF($E$3="0",Лист2!B97^$L$11,1) -> 1 | M107: =Лист2!$B97^M$11 -> 0 | N107: =Лист2!$B97^N$11 -> 0 | O107: =Лист2!$B97^O$11 -> 0 | P107: =Лист2!$B97^P$11 -> 0 | Q107: =Лист2!$B97^Q$11 -> 0
D108: =IF(ISNUMBER(Лист2!C98),MMULT(OFFSET(L108,0,0,1,$J$3),OFFSET($N$3,0,0,$J$3,1)),"") ->  | E108: =MMULT(MMULT(OFFSET(L108,0,0,1,$J$3),икст_1),TRANSPOSE(OFFSET(L108,0,0,1,$J$3))) -> 0.2074592075 | G108: =IF(ISNUMBER(Лист2!C98),D108-$D$10*$E$10*SQRT(E108),"") ->  | H108: =IF(ISNUMBER(Лист2!C98),D108+$D$10*$E$10*SQRT(E108),"") ->  | I108: =IF(ISNUMBER(Лист2!C98),D108-$D$10*$E$10*SQRT(1+E108),"") ->  | J108: =IF(ISNUMBER(Лист2!C98),D108+$D$10*$E$10*SQRT(1+E108),"") ->  | K108: =Лист2!C98 -> 0 | L108: =IF($E$3="0",Лист2!B98^$L$11,1) -> 1 | M108: =Лист2!$B98^M$11 -> 0 | N108: =Лист2!$B98^N$11 -> 0 | O108: =Лист2!$B98^O$11 -> 0 | P108: =Лист2!$B98^P$11 -> 0 | Q108: =Лист2!$B98^Q$11 -> 0
D109: =IF(ISNUMBER(Лист2!C99),MMULT(OFFSET(L109,0,0,1,$J$3),OFFSET($N$3,0,0,$J$3,1)),"") ->  | E109: =MMULT(MMULT(OFFSET(L109,0,0,1,$J$3),икст_1),TRANSPOSE(OFFSET(L109,0,0,1,$J$3))) -> 0.2074592075 | G109: =IF(ISNUMBER(Лист2!C99),D109-$D$10*$E$10*SQRT(E109),"") ->  | H109: =IF(ISNUMBER(Лист2!C99),D109+$D$10*$E$10*SQRT(E109),"") ->  | I109: =IF(ISNUMBER(Лист2!C99),D109-$D$10*$E$10*SQRT(1+E109),"") ->  | J109: =IF(ISNUMBER(Лист2!C99),D109+$D$10*$E$10*SQRT(1+E109),"") ->  | K109: =Лист2!C99 -> 0 | L109: =IF($E$3="0",Лист2!B99^$L$11,1) -> 1 | M109: =Лист2!$B99^M$11 -> 0 | N109: =Лист2!$B99^N$11 -> 0 | O109: =Лист2!$B99^O$11 -> 0 | P109: =Лист2!$B99^P$11 -> 0 | Q109: =Лист2!$B99^Q$11 -> 0
D110: =IF(ISNUMBER(Лист2!C100),MMULT(OFFSET(L110,0,0,1,$J$3),OFFSET($N$3,0,0,$J$3,1)),"") ->  | E110: =MMULT(MMULT(OFFSET(L110,0,0,1,$J$3),икст_1),TRANSPOSE(OFFSET(L110,0,0,1,$J$3))) -> 0.2074592075 | G110: =IF(ISNUMBER(Лист2!C100),D110-$D$10*$E$10*SQRT(E110),"") ->  | H110: =IF(ISNUMBER(Лист2!C100),D110+$D$10*$E$10*SQRT(E110),"") ->  | I110: =IF(ISNUMBER(Лист2!C100),D110-$D$10*$E$10*SQRT(1+E110),"") ->  | J110: =IF(ISNUMBER(Лист2!C100),D110+$D$10*$E$10*SQRT(1+E110),"") ->  | K110: =Лист2!C100 -> 0 | L110: =IF($E$3="0",Лист2!B100^$L$11,1) -> 1 | M110: =Лист2!$B100^M$11 -> 0 | N110: =Лист2!$B100^N$11 -> 0 | O110: =Лист2!$B100^O$11 -> 0 | P110: =Лист2!$B100^P$11 -> 0 | Q110: =Лист2!$B100^Q$11 -> 0
D111: =IF(ISNUMBER(Лист2!C101),MMULT(OFFSET(L111,0,0,1,$J$3),OFFSET($N$3,0,0,$J$3,1)),"") ->  | E111: =MMULT(MMULT(OFFSET(L111,0,0,1,$J$3),икст_1),TRANSPOSE(OFFSET(L111,0,0,1,$J$3))) -> 0.2074592075 | G111: =IF(ISNUMBER(Лист2!C101),D111-$D$10*$E$10*SQRT(E111),"") ->  | H111: =IF(ISNUMBER(Лист2!C101),D111+$D$10*$E$10*SQRT(E111),"") ->  | I111: =IF(ISNUMBER(Лист2!C101),D111-$D$10*$E$10*SQRT(1+E111),"") ->  | J111: =IF(ISNUMBER(Лист2!C101),D111+$D$10*$E$10*SQRT(1+E111),"") ->  | K111: =Лист2!C101 -> 0 | L111: =IF($E$3="0",Лист2!B101^$L$11,1) -> 1 | M111: =Лист2!$B101^M$11 -> 0 | N111: =Лист2!$B101^N$11 -> 0 | O111: =Лист2!$B101^O$11 -> 0 | P111: =Лист2!$B101^P$11 -> 0 | Q111: =Лист2!$B101^Q$11 -> 0

Sheet Лист2
B1: X | C1: Y | D1: =Лист1!G3 -> y = a + bx + cx2
A2: 1 | B2: -5 | C2: -124 | F2: 0.01
A3: 2 | B3: -4 | C3: -65 | F3: 0.01 | P3: 1
A4: 3 | B4: -3 | C4: -27 | F4: 0.01 | P4: 1
A5: 4 | B5: -2 | C5: -9 | H5: 1.045315553 | P5: 1
A6: 5 | B6: -1 | C6: -2 | H6: 1.037168861 | P6: 0
A7: 6 | B7: 0 | C7: 1 | P7: 0
A8: 7 | B8: 1 | C8: 2 | P8: 0
A9: 8 | B9: 2 | C9: 7
A10: 9 | B10: 3 | C10: 28 | E10: =IF(ISERROR(Лист1!N3),"",Лист1!M3) -> a | F10: =IF(ISERROR(Лист1!N3),"",Лист1!N3) -> 0.009324009324 | G10: =IF(ISERROR(Лист1!N3),"",Лист1!P3) -> незначим | H10: s = | I10: =Лист1!D10 -> 27.11735267
A11: 10 | B11: 4 | C11: 66 | E11: =IF(ISERROR(Лист1!N4),"",Лист1!M4) -> bx | F11: =IF(ISERROR(Лист1!N4),"",Лист1!N4) -> 17.86363636 | G11: =IF(ISERROR(Лист1!N4),"",Лист1!P4) -> значим | H11: t = | I11: =Лист1!E10 -> 2.306004135
A12: 11 | B12: 5 | C12: 124 | E12: =IF(ISERROR(Лист1!N5),"",Лист1!M5) -> cx2 | F12: =IF(ISERROR(Лист1!N5),"",Лист1!N5) -> 0.008158508159 | G12: =IF(ISERROR(Лист1!N5),"",Лист1!P5) -> незначим | H12: R = | I12: =Лист1!B13 -> 0.925453447
A13: 12 | E13: =IF(ISERROR(Лист1!N6),"",Лист1!M6) ->  | F13: =IF(ISERROR(Лист1!N6),"",Лист1!N6) ->  | G13: =IF(ISERROR(Лист1!N6),"",Лист1!P6) -> 
A14: 13 | E14: =IF(ISERROR(Лист1!N7),"",Лист1!M7) ->  | F14: =IF(ISERROR(Лист1!N7),"",Лист1!N7) ->  | G14: =IF(ISERROR(Лист1!N7),"",Лист1!P7) -> 
A15: 14 | E15: =IF(ISERROR(Лист1!N8),"",Лист1!M8) ->  | F15: =IF(ISERROR(Лист1!N8),"",Лист1!N8) ->  | G15: =IF(ISERROR(Лист1!N8),"",Лист1!P8) -> 
A16: 15
A17: 16
A18: 17
A19: 18
A20: 19
A21: 20
A22: 21
A23: 22
A24: 23
A25: 24
A26: 25
A27: 26
A28: 27
A29: 28
A30: 29
A31: 30
A32: 31
A33: 32
A34: 33
A35: 34
A36: 35
A37: 36
A38: 37
A39: 38
A40: 39
A41: 40
A42: 41
A43: 42
A44: 43
A45: 44
A46: 45
A47: 46
A48: 47
A49: 48
A50: 49
A51: 50
A52: 51
A53: 52
A54: 53
A55: 54
A56: 55
A57: 56
A58: 57
A59: 58
A60: 59
A61: 60
A62: 61
A63: 62
A64: 63
A65: 64
A66: 65
A67: 66
A68: 67
A69: 68
A70: 69
A71: 70
A72: 71
A73: 72
A74: 73
A75: 74
A76: 75
A77: 76
A78: 77
A79: 78
A80: 79
A81: 80
A82: 81
A83: 82
A84: 83
A85: 84
A86: 85
A87: 86
A88: 87
A89: 88
A90: 89
A91: 90
A92: 91
A93: 92
A94: 93
A95: 94
A96: 95
A97: 96
A98: 97
A99: 98
A100: 99
A101: 100
